Workbook

Sheet Ext
B1: Extinction atmosphérique | M1: François Teyssier
B2: Visualisation de l'extinction atmophèrique à partir du modèle présenté par C. Buil | H2: http://www.astrosurf.com/buil/extinction/calcul.htm | N2: 2012-12-15
B4: Site | K4: Hauteur étoile
B6: Altitude | C6: 600 | D6: m | E6: 600 | K6: H | L6: 30 | M6: ° | N6: 90
K7: z | L7: =90-L6 -> 60 | M7: °
B8: AOD | C8: 0.13 | E8: 2 | K8: Masse air | L8: =1/((COS(RADIANS(z))+0.025*(EXP(-11*COS(RADIANS(z)))))) -> 1.999591406
B11: Extinction atmosphérique au zénith | I11: Transmission atmosphérique en fonction de la hauteur de l'étoile

Sheet RI1
D1: Influence de l'extinction atmophérique sur la réponse sur le domaine visible
D2: Lisa eShel
D4: Référence | K4: Target
B6: Hauteur | D6: 61 | E6: ° | K6: 56 | L6: °
B7: Distance zénith | D7: =90-D6 -> 29 | E7: ° | K7: =90-K6 -> 34 | L7: °
B8: Masse d'air | D8: =1/((COS(RADIANS(Z_REF))+0.025*(EXP(-11*COS(RADIANS(Z_REF)))))) -> 1.1433519 | K8: =1/((COS(RADIANS(Z_TARGET))+0.025*(EXP(-11*COS(RADIANS(Z_TARGET)))))) -> 1.206213965
D10: l normalisation | F10: 5500 | G10: Å | I10: D H | J10: =+K6-D6 -> -5 | N10: D4000 | O10: =+Data!P7 -> -1.840458085 | P10: %
I11: AOD | J11: =+AOD -> 0.13 | N11: D3800 | O11: =+Data!P5 -> -2.390752348 | P11: %
D13: Transmission atmosphérique | K13: Erreur relative [%]
D30: Longueur d'onde [Å] | K30: Longueur d'onde [Å]
D49: Longueur d'onde [Å]

Sheet RI2
D1: Influence de l'extinction atmophérique sur la réponse sur un domaine étroit (6500-6620 Å)
D4: Référence | K4: Target
B6: Hauteur | D6: =+'RI1'!D6 -> 61 | E6: ° | K6: =+'RI1'!K6 -> 56 | L6: °
B7: Distance zénith | D7: =90-D6 -> 29 | E7: ° | K7: =90-K6 -> 34 | L7: °
B8: Masse d'air | D8: =1/((COS(RADIANS(Z_REF))+0.025*(EXP(-11*COS(RADIANS(Z_REF)))))) -> 1.1433519 | K8: =1/((COS(RADIANS(Z_TARGET))+0.025*(EXP(-11*COS(RADIANS(Z_TARGET)))))) -> 1.206213965
D10: l normalisation | F10: 6500 | G10: Å | I10: D H | J10: =+K6-D6 -> -5
I11: AOD | J11: =+AOD -> 0.13 | N11: D6600 | O11: =+Data!P33 -> 0.4887591855 | P11: %
D13: Transmission atmosphérique | K13: Erreur relative [%]
D30: Longueur d'onde [Å] | K30: Longueur d'onde [Å]
D49: Longueur d'onde [Å]
D50: =+CONCATENATE("H Réf. = ",D6,"°"," H Target = ",K6,"°") -> H Réf. = 61° H Target = 56°

Sheet Data
B1: l [A] | C1: l [mm] | D1: 1.1 Rayleigh | E1: 1.2 | F1: 2.1 Ozone | G1: 2.2 Ozone | H1: 3. Aérosols | I1: Total | J1: Transmission | K1: Transmission | L1: Trans_Ref | M1: =+VLOOKUP('RI1'!F10,Data!A2:L42,12,) -> 0.7695586892 | N1: Trans_Target | O1: =VLOOKUP('RI1'!F10,Data!A2:N42,14,) -> 0.7585553225
A2: 3500 | B2: 0.35 | C2: =+(1/B2)^2 -> 8.163265306 | D2: =0.23465+1.076*100/(146-C2)+0.93161/(41-C2) -> 1.043654668 | E2: =9.4977*0.001*C2^2*D2*EXP(-h/7.996/1000) -> 0.6127942899 | F2: =+EXP(-0.0168*EXP(-15*ABS(B2-0.59))) -> 0.9995410668 | G2: =-2.5*LOG(F2) -> 0.0004983947591 | H2: =2.5*LOG(EXP(AOD*(B2/0.55)^(-1.3))) -> 0.2540099395 | I2: =+E2+G2+H2 -> 0.8673026241 | J2: =10^(-0.4*I2*ma) -> 0.2024415484 | K2: =10^(-0.4*I2) -> 0.4498616278 | L2: =10^(-0.4*I2*ma_ref) -> 0.4011872836 | M2: =+L2/M$1 -> 0.5213212315 | N2: =10^(-0.4*I2*ma_target) -> 0.3815390423 | O2: =+N2/O$1 -> 0.5029811682 | P2: =(O2/M2-1)*100 -> -3.517996618
A3: 3600 | B3: 0.36 | C3: 7.716049383 | D3: 1.040748864 | E3: 0.5459665176 | F3: 0.9994668155 | G3: 0.0005790520975 | H3: 0.2448758281 | I3: 0.7914213977 | J3: 0.2328049604 | K3: =10^(-0.4*I3) -> 0.4824268166 | L3: 0.4345609888 | M3: =+L3/M$1 -> 0.564688561 | N3: 0.4150979448 | O3: =+N3/O$1 -> 0.5472217155 | P3: =(O3/M3-1)*100 -> -3.093182114
A4: 3700 | B4: 0.37 | C4: 7.304601899 | D4: 1.038098783 | E4: 0.4880472309 | F4: 0.9993805547 | G4: 0.0006727625553 | H4: 0.2363071853 | I4: 0.7250271788 | J4: 0.2630854037 | K4: 0.5128485459 | L4: 0.4660317645 | M4: 0.6055831362 | N4: 0.4468737422 | O4: 0.5891116033 | P4: -2.719945772
A5: 3800 | B5: =+A5/10000 -> 0.38 | C5: =+(1/B5)^2 -> 6.925207756 | D5: =0.23465+1.076*100/(146-C5)+0.93161/(41-C5) -> 1.035674572 | E5: 0.4376420003 | F5: =+EXP(-0.0168*EXP(-15*ABS(B5-0.59))) -> 0.9992803433 | G5: =-2.5*LOG(F5) -> 0.0007816385739 | H5: 0.2282551016 | I5: =+E5+G5+H5 -> 0.6666787405 | J5: 0.2929314274 | K5: 0.5411635085 | L5: 0.4955650137 | M5: 0.6439600003 | N5: 0.4768009557 | O5: 0.6285645115 | P5: -2.390752348
A6: 3900 | B6: =+A6/10000 -> 0.39 | C6: =+(1/B6)^2 -> 6.574621959 | D6: =0.23465+1.076*100/(146-SQRT(C6))+0.93161/(41-C6) -> 1.011872608 | E6: 0.3853873709 | F6: =+EXP(-0.0168*EXP(-15*ABS(B6-0.59))) -> 0.999163927 | G6: =-2.5*LOG(F6) -> 0.0009081344606 | H6: 0.2206760387 | I6: =+E6+G6+H6 -> 0.6069715441 | J6: 0.3269805851 | K6: 0.5717568578 | L6: 0.5277243975 | M6: 0.6857493846 | N6: 0.5095009275 | O6: 0.6716727342 | P6: -2.052739782
A7: 4000 | B7: 0.4 | C7: 6.25 | D7: =0.23465+1.076*100/(146-C7)+0.93161/(41-C7) -> 1.031405254 | E7: 0.3549927153 | F7: 0.9990286874 | G7: 0.001055101713 | H7: 0.2135311209 | I7: 0.569578938 | J7: 0.3502917751 | K7: 0.5917910936 | L7: 0.5489190912 | M7: 0.7132907456 | N7: 0.5311123159 | O7: 0.7001629284 | P7: -1.840458085
A8: 4100 | B8: 0.41 | C8: 5.948839976 | D8: 1.029519251 | E8: 0.3210177988 | F8: 0.9988715845 | G8: 0.0012258533 | H8: 0.2067855345 | I8: 0.5290291866 | J8: 0.377453202 | K8: 0.6143110472 | L8: 0.5728664517 | M8: 0.7444090486 | N8: 0.5555856793 | O8: 0.732426051 | P8: -1.609732929
A9: 4200 | B9: 0.42 | C9: 5.66893424 | D9: 1.027776246 | E9: 0.2910257932 | F9: 0.998689088 | G9: 0.001424238341 | H9: 0.2004080171 | I9: 0.4928580487 | J9: 0.4034540807 | K9: 0.6351214501 | L9: 0.5951081876 | M9: 0.7733109846 | N9: 0.5783664543 | O9: 0.7624578421 | P9: -1.403464162
A10: 4300 | B10: 0.43 | C10: 5.408328826 | D10: 1.026161888 | E10: 0.2644673879 | F10: 0.9984770992 | G10: 0.001654728874 | H10: 0.1943704215 | I10: 0.4604925382 | J10: 0.4282340844 | K10: 0.6543392693 | L10: 0.6157408864 | M10: 0.8001220636 | N10: 0.5995411379 | O10: 0.7903723303 | P10: -1.218530736
A11: 4400 | B11: 0.44 | C11: 5.165289256 | D11: 1.024663616 | E11: 0.2408799634 | F11: 0.9982308598 | G11: 0.001922520668 | H11: 0.1886473414 | I11: 0.4314498255 | J11: 0.4517629957 | K11: 0.6720786043 | L11: 0.6348635729 | M11: 0.824970963 | N11: 0.6192010414 | O11: 0.8162898909 | P11: -1.052288194
A12: 4500 | B12: 0.45 | C12: 4.938271605 | D12: 1.023270386 | E12: 0.2198722485 | F12: =+EXP(-0.0168*EXP(-15*ABS(B12-0.59))) -> 0.9979448467 | G12: 0.002233650345 | H12: 0.1832157905 | I12: 0.4053216894 | J12: 0.474033346 | K12: 0.688448288 | L12: 0.6525741563 | M12: 0.8479849106 | N12: 0.6374382604 | O12: 0.840331933 | P12: -0.9024898392
A13: 4600 | B13: 0.46 | C13: 4.725897921 | D13: 1.02197246 | E13: 0.201111976 | F13: 0.9976126499 | G13: 0.002595131457 | H13: 0.1780549236 | I13: 0.3817620311 | J13: 0.4950542227 | K13: 0.7035503567 | L13: 0.6689669506 | M13: 0.8692864625 | N13: 0.654342792 | O13: 0.8626170993 | P13: -0.7672227056
A14: 4700 | B14: 0.47 | C14: 4.526935265 | D14: 1.020761217 | E14: 0.1843158981 | F14: 0.997226831 | G14: 0.003015112591 | H14: 0.1731457968 | I14: 0.3604768074 | J14: 0.51484615 | K14: 0.7174791369 | L14: 0.6841309888 | M14: 0.888991312 | N14: 0.6700005147 | O14: 0.8832586034 | P14: -0.6448554216
A15: 4800 | B15: 0.48 | C15: 4.340277778 | D15: 1.019629004 | E15: 0.1692416686 | F15: 0.9967787609 | G15: 0.003503061054 | H15: 0.1684711576 | I15: 0.3412158872 | J15: 0.5334369041 | K15: 0.7303207585 | L15: 0.698148914 | M15: 0.9072068496 | N15: 0.6844918046 | O15: 0.9023624043 | P15: -0.533995672
A16: 4900 | B16: 0.49 | C16: 4.164931279 | D16: 1.018569003 | E16: 0.1556812116 | F16: 0.9962584305 | G16: 0.004069976287 | H16: 0.164015263 | I16: 0.3237664509 | J16: 0.5508581191 | K16: 0.7421529527 | L16: 0.7110962777 | M16: 0.9240312503 | N16: 0.6978906088 | O16: 0.9200259864 | P16: -0.4334554596
A17: 5000 | B17: 0.5 | C17: 4 | D17: 1.017575128 | E17: 0.1434552785 | F17: 0.9956542339 | G17: 0.004728637817 | H17: 0.1597637195 | I17: 0.3079476358 | J17: 0.5671425369 | K17: 0.7530450284 | L17: 0.7230411158 | M17: 0.9395529229 | N17: 0.7102638391 | O17: 0.9363375591 | P17: -0.3422227443
A18: 5100 | B18: 0.51 | C18: 3.844675125 | D18: 1.016641925 | E18: 0.1324089611 | F18: 0.9949527178 | G18: 0.005493893337 | H18: 0.1557033439 | I18: 0.2936061984 | J18: 0.5823217715 | K18: 0.7630579486 | L18: 0.7340437041 | M18: 0.9538501929 | N18: 0.7216709794 | O18: 0.9513755398 | P18: -0.2594383414
A19: 5200 | B19: 0.52 | C19: 3.698224852 | D19: 1.015764499 | E19: 0.1224079777 | F19: 0.9941382931 | G19: 0.006382993405 | H19: 0.1518220397 | I19: 0.2806130108 | J19: 0.596424471 | K19: 0.7722444498 | L19: 0.7441564191 | M19: 0.9669911205 | N19: 0.7321638246 | O19: 0.9652082094 | P19: -0.1843771927
A20: 5300 | B20: 0.53 | C20: 3.55998576 | D20: 1.014938446 | E20: 0.1133355855 | F20: 0.9931929037 | G20: 0.007415980309 | H20: 0.1481086891 | I20: 0.268860255 | J20: 0.609474778 | K20: 0.7806491623 | L20: 0.7534236466 | M20: 0.9790333827 | N20: 0.7417862902 | O20: 0.9778934616 | P20: -0.1164333154
A21: 5400 | B21: 0.54 | C21: 3.429355281 | D21: 1.014159789 | E21: 0.1050900055 | F21: 0.9920956469 | G21: 0.008616139866 | H21: 0.1445530571 | I21: 0.2582592025 | J21: 0.6214910048 | K21: 0.7883086989 | L21: 0.7618816963 | M21: 0.9900241619 | N21: 0.7505742438 | O21: 0.9894785805 | P21: -0.05510788066
A22: 5500 | B22: 0.55 | C22: 3.305785124 | D22: 1.013424935 | E22: 0.09758226519 | F22: 0.9908223387 | G22: 0.01001052634 | H22: 0.1411457066 | I22: 0.2487384981 | J22: 0.632484453 | K22: 0.7952516901 | L22: 0.7695586892 | M22: 1 | N22: 0.7585553225 | O22: 1 | P22: 0
A23: 5600 | B23: 0.56 | C23: 3.18877551 | D23: 1.012730629 | E23: 0.09073438588 | F23: 0.9893450178 | G23: 0.01163057229 | H23: 0.1378779233 | I23: 0.2402428815 | J23: 0.6424583227 | K23: 0.8014987464 | L23: 0.7764743932 | M23: 1.008986584 | N23: 0.7657487077 | O23: 1.009483007 | P23: 0.04920010686
A24: 5700 | B24: 0.57 | C24: 3.077870114 | D24: 1.012073913 | E24: 0.08447785443 | F24: 0.9876313819 | G24: 0.01351279714 | H24: 0.1347416484 | I24: 0.2327323 | J24: 0.651406664 | K24: 0.8070623358 | L24: 0.7826399865 | M24: 1.01699844 | N24: 0.7721648354 | O24: 1.017941358 | P24: 0.09271580277
A25: 5800 | B25: 0.58 | C25: 2.972651605 | D25: 1.011452097 | E25: 0.07875233008 | F25: 0.9856441482 | G25: 0.01569963044 | H25: 0.1317294192 | I25: 0.2261813797 | J25: 0.6593133396 | K25: 0.8119465636 | L25: 0.7880577346 | M25: 1.024038512 | N25: 0.7778050248 | O25: 1.025376794 | P25: 0.1306867538
A26: 5900 | B26: 0.59 | C26: 2.872737719 | D26: 1.010862732 | E26: 0.07350454715 | F26: 0.983340333 | G26: 0.01824036824 | H26: 0.1288343152 | I26: 0.2205792306 | J26: 0.6661509727 | K26: 0.8161468481 | L26: 0.7927205688 | M26: 1.030097613 | N26: 0.782661013 | O26: 1.031778421 | P26: 0.1631697899
A27: 6000 | B27: 0.6 | C27: 2.777777778 | D27: 1.01030358 | E27: 0.06868738101 | F27: 0.9856441482 | G27: 0.01569963044 | H27: 0.1260499109 | I27: 0.2104369224 | J27: 0.6787109491 | K27: 0.8238065318 | L27: 0.8012326124 | M27: 1.041158554 | N27: 0.7915297054 | O27: 1.043469978 | P27: 0.2220049185
A28: 6100 | B28: 0.61 | C28: 2.68744961 | D28: 1.009772592 | E28: 0.06425905076 | F28: 0.9876313819 | G28: 0.01351279714 | H28: 0.1233702325 | I28: 0.2011420804 | J28: 0.6904292943 | K28: 0.830889303 | L28: 0.8091136503 | M28: 1.051399538 | N28: 0.7997455744 | O28: 1.05430092 | P28: 0.2759542769
A29: 6200 | B29: 0.62 | C29: 2.601456816 | D29: 1.009267896 | E29: 0.06018243673 | F29: 0.9893450178 | G29: 0.01163057229 | H29: 0.1207897194 | I29: 0.1926027284 | J29: 0.7013734078 | K29: 0.8374500419 | L29: 0.8164224187 | M29: 1.060896888 | N29: 0.8073687949 | O29: 1.064350577 | P29: 0.3255441968
A30: 6300 | B30: 0.63 | C30: 2.519526329 | D30: 1.008787769 | E30: 0.05642449457 | F30: 0.9908223387 | G30: 0.01001052634 | H30: 0.1183031897 | I30: 0.1847382106 | J30: 0.7116060383 | K30: 0.8435381246 | L30: 0.8232119883 | M30: 1.069719568 | N30: 0.8144538418 | O30: 1.073690761 | P30: 0.3712368971
A31: 6400 | B31: 0.64 | C31: 2.44140625 | D31: 1.008330632 | E31: 0.05295575111 | F31: 0.9920956469 | G31: 0.008616139866 | H31: 0.115905809 | I31: 0.1774776999 | J31: 0.7211852679 | K31: 0.8491979166 | L31: 0.8295302233 | M31: 1.077929773 | N31: 0.8210499292 | O31: 1.082386353 | P31: 0.4134388019
A32: 6500 | B32: 0.65 | C32: 2.366863905 | D32: 1.00789503 | E32: 0.04974986935 | F32: 0.9931929037 | G32: 0.007415980309 | H32: 0.1135930616 | I32: 0.1707589113 | J32: 0.7301646098 | K32: 0.8544692445 | L32: 0.835420234 | M32: 1.085583524 | N32: 0.8272014493 | O32: 1.090495874 | P32: 0.4525077409
A33: 6600 | B33: 0.66 | C33: 2.295684114 | D33: 1.007479622 | E33: 0.04678327231 | F33: 0.9941382931 | G33: 0.006382993405 | H33: 0.1113607257 | I33: 0.1645269914 | J33: 0.7385931861 | K33: 0.8593878383 | L33: 0.8409208114 | M33: 1.092731228 | N33: 0.8329483997 | O33: 1.098072052 | P33: 0.4887591855
A34: 6700 | B34: 0.67 | C34: 2.227667632 | D34: 1.007083171 | E34: 0.04403481692 | F34: 0.9949527178 | G34: 0.005493893337 | H34: 0.1092048496 | I34: 0.1587335599 | J34: 0.7465159566 | K34: 0.863985743 | L34: 0.8460668382 | M34: 1.099418212 | N34: 0.8383267908 | O34: 1.105162361 | P34: 0.5224716518
A35: 6800 | B35: 0.68 | C35: 2.162629758 | D35: 1.006704533 | E35: 0.04148551067 | F35: 0.9956542339 | G35: 0.004728637817 | H35: 0.107121731 | I35: 0.1533358795 | J35: 0.7539739779 | K35: 0.8682916971 | L35: 0.8508896721 | M35: 1.105685225 | N35: 0.8433690288 | O35: 1.11180952 | P35: 0.5538913859
A36: 6900 | B36: 0.69 | C36: 2.100399076 | D36: 1.00634265 | E36: 0.03911826489 | F36: 0.9962584305 | G36: 0.004069976287 | H36: 0.1051078979 | I36: 0.1482961391 | J36: 0.761004677 | K36: 0.8723314782 | L36: 0.8554175006 | M36: 1.111568893 | N36: 0.8481042713 | O36: 1.118051968 | P36: 0.583236428
A37: 7000 | B37: 0.7 | C37: 2.040816327 | D37: 1.005996542 | E37: 0.03691767949 | F37: 0.9967787609 | G37: 0.003503061054 | H37: 0.103160091 | I37: 0.1435808316 | J37: 0.767642129 | K37: 0.8761282164 | L37: 0.8596756652 | M37: 1.117102149 | N37: 0.8525587546 | O37: 1.123924293 | P37: 0.61070014
A38: 7100 | B38: 0.71 | C38: 1.983733386 | D38: 1.0056653 | E38: 0.03486985471 | F38: 0.997226831 | G38: 0.003015112591 | H38: 0.101275248 | I38: 0.1391602153 | J38: 0.77391733 | K38: 0.8797026777 | L38: 0.8636869575 | M38: 1.122314607 | N38: 0.8567560936 | O38: 1.129457626 | P38: 0.6364542704
A39: 7200 | B39: 0.72 | C39: 1.929012346 | D39: 1.005348081 | E39: 0.03296222615 | F39: 0.9976126499 | G39: 0.002595131457 | H39: 0.09945048908 | I39: 0.1350078467 | J39: 0.7798584603 | K39: 0.8830735184 | L39: 0.8674718864 | M39: 1.127232918 | N39: 0.8607175533 | O39: 1.13468 | P39: 0.6606516175
A40: 7300 | B40: 0.73 | C40: 1.876524676 | D40: 1.005044099 | E40: 0.03118342003 | F40: 0.9979448467 | G40: 0.002233650345 | H40: 0.09768310379 | I40: 0.1311001742 | J40: 0.7854911338 | K40: 0.8862575141 | L40: 0.8710489202 | M40: 1.13188108 | N40: 0.8644622952 | O40: 1.139616676 | P40: 0.6834283463
A41: 7400 | B41: 0.74 | C41: 1.826150475 | D41: 1.004752623 | E41: 0.0295231258 | F41: 0.9982308598 | G41: 0.001922520668 | H41: 0.09597053879 | I41: 0.1274161853 | J41: 0.7908386323 | K41: 0.8892697635 | L41: 0.8744347034 | M41: 1.136280723 | N41: 0.8680075989 | O41: 1.144290434 | P41: 0.7049060056
A42: 7500 | B42: 0.75 | C42: 1.777777778 | D42: 1.004472975 | E42: 0.02797198394 | F42: 0.9984770992 | G42: 0.001654728874 | H42: 0.09431038684 | I42: 0.1239370996 | J42: 0.795922123 | K42: 0.892123871 | L42: 0.8776442516 | M42: 1.140451357 | N42: 0.8713690613 | O42: 1.148721834 | P42: 0.7251932849

Sheet Data2
B1: l [A] | C1: l [mm] | D1: 1.1 Rayleigh | E1: 1.2 | F1: 2.1 Ozone | G1: 2.2 Ozone | H1: 3. Aérosols | I1: Total | J1: Transmission | K1: Transmission | L1: Trans_Ref | M1: =+VLOOKUP('RI1'!F10,Data!A2:L42,12,) -> 0.7695586892 | N1: Trans_Target | O1: =VLOOKUP('RI1'!F10,Data!A2:N42,14,) -> 0.7585553225 | R1: =+VLOOKUP('RI1'!F10,Data2!A2:Q3752,17,1) -> 0.9779281076
A2: 3800 | B2: =+A2/10000 -> 0.38 | C2: =+(1/B2)^2 -> 6.925207756 | D2: =0.23465+1.076*100/(146-C2)+0.93161/(41-C2) -> 1.035674572 | E2: =9.4977*0.001*C2^2*D2*EXP(-h/7.996/1000) -> 0.4376420003 | F2: =+EXP(-0.0168*EXP(-15*ABS(B2-0.59))) -> 0.9992803433 | G2: =-2.5*LOG(F2) -> 0.0007816385739 | H2: =2.5*LOG(EXP(AOD*(B2/0.55)^(-1.3))) -> 0.2282551016 | I2: =+E2+G2+H2 -> 0.6666787405 | J2: =10^(-0.4*I2*ma) -> 0.2929314274 | K2: =10^(-0.4*I2) -> 0.5411635085 | L2: =10^(-0.4*I2*ma_ref) -> 0.4955650137 | M2: =+L2/M$1 -> 0.6439600003 | N2: =10^(-0.4*I2*ma_target) -> 0.4768009557 | O2: =+N2/O$1 -> 0.6285645115 | P2: =(O2/M2-1)*100 -> -2.390752348 | Q2: =+Spectre!C1*N2/L2 -> 1.609685739 | R2: =+Q2/R$1 -> 1.646016437
A3: 3801 | B3: =+A3/10000 -> 0.3801 | C3: =+(1/B3)^2 -> 6.921564348 | D3: =0.23465+1.076*100/(146-SQRT(C3))+0.93161/(41-C3) -> 1.012497555 | E3: 0.427398085 | F3: =+EXP(-0.0168*EXP(-15*ABS(B3-0.59))) -> 0.9992792634 | G3: =-2.5*LOG(F3) -> 0.0007828119116 | H3: 0.228177038 | I3: =+E3+G3+H3 -> 0.6563579348 | J3: 0.2985526467 | K3: 0.5463322354 | L3: 0.5009804324 | M3: 0.6509970447 | N3: 0.4822994395 | O3: 0.6358131374 | P3: -2.332408019 | Q3: =+Spectre!C2*N3/L3 -> 1.644437962 | R3: =+Q3/R$1 -> 1.68155302
A4: 3802 | B4: 0.3802 | C4: 6.917923815 | D4: =0.23465+1.076*100/(146-C4)+0.93161/(41-C4) -> 1.03562821 | E4: 0.4367023099 | F4: 0.9992781819 | G4: 0.0007839870105 | H4: 0.2280990215 | I4: 0.6655853184 | J4: 0.2935219114 | K4: 0.5417087774 | L4: 0.4961359585 | M4: 0.6447019123 | N4: 0.4773805029 | O4: 0.6293285259 | P4: -2.384572798 | Q4: =+Spectre!C3*N4/L4 -> 1.671883634 | R4: 1.709618142
A5: 3803 | B5: 0.3803 | C5: 6.914286153 | D5: 1.035605059 | E5: 0.4362334149 | F5: 0.9992770988 | G5: 0.0007851638735 | H5: 0.2280210523 | I5: 0.6650396311 | J5: 0.2938170456 | K5: 0.5419811069 | L5: 0.4964211424 | M5: 0.6450724934 | N5: 0.4776699973 | O5: 0.6297101651 | P5: -2.381488662 | Q5: =+Spectre!C4*N5/L5 -> 1.688259391 | R5: 1.7263635
A6: 3804 | B6: 0.3804 | C6: 6.910651359 | D6: 1.035581928 | E6: 0.4357651521 | F6: 0.999276014 | G6: 0.000786342503 | H6: 0.2279431302 | I6: 0.6644946248 | J6: 0.2941121077 | K6: 0.542253233 | L6: 0.496706134 | M6: 0.6454428245 | N6: 0.4779593057 | O6: 0.6300915589 | P6: -2.378408278 | Q6: =+Spectre!C5*N6/L6 -> 1.704363856 | R6: 1.742831444
A7: 3805 | B7: 0.3805 | C7: 6.907019431 | D7: 1.035558817 | E7: 0.4352975205 | F7: 0.9992749276 | G7: 0.0007875229019 | H7: 0.2278652552 | I7: 0.6639502986 | J7: 0.2944070974 | K7: 0.5425251561 | L7: 0.4969909333 | M7: 0.6458129058 | N7: 0.478248428 | O7: 0.6304727075 | P7: -2.37533164 | Q7: =+Spectre!C6*N7/L7 -> 1.717209066 | R7: 1.755966571
A8: 3806 | B8: 0.3806 | C8: 6.903390365 | D8: 1.035535725 | E8: 0.4348305189 | F8: 0.9992738396 | G8: 0.0007887050726 | H8: 0.2277874273 | I8: 0.6634066512 | J8: 0.2947020145 | K8: 0.5427968761 | L8: 0.4972755403 | M8: 0.6461827373 | N8: 0.4785373642 | O8: 0.6308536108 | P8: -2.372258743 | Q8: =+Spectre!C7*N8/L8 -> 1.728951077 | R8: 1.7679736
A9: 3807 | B9: 0.3807 | C9: 6.899764159 | D9: 1.035512654 | E9: 0.4343641464 | F9: 0.9992727499 | G9: 0.000789889018 | H9: 0.2277096463 | I9: 0.6628636817 | J9: 0.2949968587 | K9: 0.5430683931 | L9: 0.4975599552 | M9: 0.6465523191 | N9: 0.4788261144 | O9: 0.6312342689 | P9: -2.369189582 | Q9: =+Spectre!C8*N9/L9 -> 1.740575184 | R9: 1.779860063
A10: 3808 | B10: 0.3808 | C10: 6.896140809 | D10: 1.035489602 | E10: 0.433898402 | F10: 0.9992716586 | G10: 0.0007910747406 | H10: 0.2276319124 | I10: 0.6623213891 | J10: 0.2952916298 | K10: 0.5433397072 | L10: 0.4978441779 | M10: 0.6469216512 | N10: 0.4791146786 | O10: 0.6316146817 | P10: -2.366124149 | Q10: =+Spectre!C9*N10/L10 -> 1.75186256 | R10: 1.791402197
A11: 3809 | B11: 0.3809 | C11: 6.892520313 | D11: 1.03546657 | E11: 0.4334332845 | F11: 0.9992705657 | G11: 0.0007922622431 | H11: 0.2275542254 | I11: 0.6617797722 | J11: 0.2955863276 | K11: 0.5436108185 | L11: 0.4981282085 | M11: 0.6472907336 | N11: 0.4794030568 | O11: 0.6319948494 | P11: -2.36306244 | Q11: =+Spectre!C10*N11/L11 -> 1.762642933 | R11: 1.802425884
A12: 3810 | B12: 0.381 | C12: 6.888902667 | D12: 1.035443558 | E12: 0.4329687931 | F12: 0.9992694711 | G12: 0.0007934515282 | H12: 0.2274765852 | I12: 0.6612388299 | J12: 0.2958809519 | K12: 0.5438817272 | L12: 0.498412047 | M12: 0.6476595664 | N12: 0.479691249 | O12: 0.6323747718 | P12: -2.360004449 | Q12: =+Spectre!C11*N12/L12 -> 1.767519627 | R12: 1.807412644
A13: 3811 | B13: 0.3811 | C13: 6.885287868 | D13: 1.035420566 | E13: 0.4325049268 | F13: 0.9992683749 | G13: 0.0007946425986 | H13: 0.227398992 | I13: 0.6606985613 | J13: 0.2961755024 | K13: 0.5441524332 | L13: 0.4986956934 | M13: 0.6480281497 | N13: 0.4799792552 | O13: 0.6327544491 | P13: -2.356950171 | Q13: =+Spectre!C12*N13/L13 -> 1.772502122 | R13: 1.812507594
A14: 3812 | B14: 0.3812 | C14: 6.881675914 | D14: 1.035397593 | E14: 0.4320416843 | F14: 0.999267277 | G14: 0.0007958354569 | H14: 0.2273214455 | I14: 0.6601589653 | J14: 0.2964699789 | K14: 0.5444229367 | L14: 0.4989791479 | M14: 0.6483964835 | N14: 0.4802670755 | O14: 0.6331338813 | P14: -2.3538996 | Q14: =+Spectre!C13*N14/L14 -> 1.752981215 | R14: 1.7925461
A15: 3813 | B15: 0.3813 | C15: 6.878066801 | D15: 1.03537464 | E15: 0.4315790649 | F15: 0.9992661775 | G15: 0.0007970301058 | H15: 0.2272439459 | I15: 0.6596200409 | J15: 0.2967643811 | K15: 0.5446932378 | L15: 0.4992624105 | M15: 0.6487645679 | N15: 0.4805547099 | O15: 0.6335130683 | P15: -2.35085273 | Q15: =+Spectre!C14*N15/L15 -> 1.709342602 | R15: 1.747922561
A16: 3814 | B16: 0.3814 | C16: 6.874460527 | D16: 1.035351707 | E16: 0.4311170674 | F16: 0.9992650764 | G16: 0.0007982265481 | H16: 0.2271664929 | I16: 0.6590817869 | J16: 0.2970587089 | K16: 0.5449633365 | L16: 0.4995454811 | M16: 0.6491324029 | N16: 0.4808421583 | O16: 0.6338920103 | P16: -2.347809556 | Q16: =+Spectre!C15*N16/L16 -> 1.674323216 | R16: 1.712112785
A17: 3815 | B17: 0.3815 | C17: 6.870857088 | D17: 1.035328794 | E17: 0.4306556909 | F17: 0.9992639736 | G17: 0.0007994247864 | H17: 0.2270890867 | I17: 0.6585442024 | J17: 0.2973529619 | K17: 0.545233233 | L17: 0.4998283598 | M17: 0.6494999886 | N17: 0.4811294209 | O17: 0.6342707072 | P17: -2.344770073 | Q17: =+Spectre!C16*N17/L17 -> 1.677775879 | R17: 1.715643375
A18: 3816 | B18: 0.3816 | C18: 6.867256482 | D18: 1.0353059 | E18: 0.4301949343 | F18: 0.9992628691 | G18: 0.0008006248234 | H18: 0.2270117271 | I18: 0.6580072863 | J18: 0.2976471401 | K18: 0.5455029273 | L18: 0.5001110468 | M18: 0.649867325 | N18: 0.4814164976 | O18: 0.6346491591 | P18: -2.341734273 | Q18: =+Spectre!C17*N18/L18 -> 1.684833789 | R18: 1.722860583
A19: 3817 | B19: 0.3817 | C19: 6.863658705 | D19: 1.035283026 | E19: 0.4297347967 | F19: 0.999261763 | G19: 0.0008018266617 | H19: 0.2269344141 | I19: 0.6574710375 | J19: 0.2979412431 | K19: 0.5457724196 | L19: 0.5003935419 | M19: 0.6502344122 | N19: 0.4817033884 | O19: 0.635027366 | P19: -2.338702153 | Q19: =+Spectre!C18*N19/L19 -> 1.689681333 | R19: 1.727817536
A20: 3818 | B20: 0.3818 | C20: 6.860063755 | D20: 1.035260171 | E20: 0.429275277 | F20: 0.9992606552 | G20: 0.0008030303042 | H20: 0.2268571477 | I20: 0.656935455 | J20: 0.2982352707 | K20: 0.5460417099 | L20: 0.5006758453 | M20: 0.6506012502 | N20: 0.4819900934 | O20: 0.6354053279 | P20: -2.335673707 | Q20: =+Spectre!C19*N20/L20 -> 1.693199153 | R20: 1.731414753
A21: 3819 | B21: 0.3819 | C21: 6.856471628 | D21: 1.035237337 | E21: 0.4288163743 | F21: 0.9992595458 | G21: 0.0008042357536 | H21: 0.2267799278 | I21: 0.6564005379 | J21: 0.2985292227 | K21: 0.5463107984 | L21: 0.500957957 | M21: 0.6509678392 | N21: 0.4822766126 | O21: 0.6357830448 | P21: -2.332648929 | Q21: =+Spectre!C20*N21/L21 -> 1.692392143 | R21: 1.730589529
A22: 3820 | B22: 0.382 | C22: 6.852882322 | D22: 1.035214521 | E22: 0.4283580875 | F22: 0.9992584347 | G22: 0.0008054430124 | H22: 0.2267027544 | I22: 0.6558662849 | J22: 0.2988230989 | K22: 0.546579685 | L22: 0.501239877 | M22: 0.651334179 | N22: 0.482562946 | O22: 0.6361605169 | P22: -2.329627813 | Q22: =+Spectre!C21*N22/L22 -> 1.679862963 | R22: 1.717777565
A23: 3821 | B23: 0.3821 | C23: 6.849295834 | D23: 1.035191725 | E23: 0.4279004156 | F23: 0.9992573219 | G23: 0.0008066520835 | H23: 0.2266256275 | I23: 0.6553326952 | J23: 0.299116899 | K23: 0.54684837 | L23: 0.5015216055 | M23: 0.65170027 | N23: 0.4828490937 | O23: 0.636537744 | P23: -2.326610355 | Q23: =+Spectre!C22*N23/L23 -> 1.667469355 | R23: 1.705104232
A24: 3822 | B24: 0.3822 | C24: 6.845712161 | D24: 1.035168949 | E24: 0.4274433577 | F24: 0.9992562075 | G24: 0.0008078629696 | H24: 0.226548547 | I24: 0.6547997677 | J24: 0.2994106228 | K24: 0.5471168533 | L24: 0.5018031424 | M24: 0.6520661119 | N24: 0.4831350556 | O24: 0.6369147263 | P24: -2.323596548 | Q24: =+Spectre!C23*N24/L24 -> 1.680743454 | R24: 1.718677928
A25: 3823 | B25: 0.3823 | C25: 6.842131299 | D25: 1.035146192 | E25: 0.4269869128 | F25: 0.9992550913 | G25: 0.0008090756733 | H25: 0.2264715128 | I25: 0.6542675013 | J25: 0.2997042702 | K25: 0.5473851351 | L25: 0.5020844877 | M25: 0.652431705 | N25: 0.4834208318 | O25: 0.6372914637 | P25: -2.320586387 | Q25: =+Spectre!C24*N25/L25 -> 1.703693465 | R25: 1.742145922
A26: 3824 | B26: 0.3824 | C26: 6.838553247 | D26: 1.035123455 | E26: 0.4265310798 | F26: 0.9992539736 | G26: 0.0008102901975 | H26: 0.226394525 | I26: 0.653735895 | J26: 0.2999978408 | K26: 0.5476532156 | L26: 0.5023656416 | M26: 0.6527970493 | N26: 0.4837064223 | O26: 0.6376679563 | P26: -2.317579866 | Q26: =+Spectre!C25*N26/L26 -> 1.723152706 | R26: 1.762044359
A27: 3825 | B27: 0.3825 | C27: 6.834978 | D27: 1.035100737 | E27: 0.4260758578 | F27: 0.9992528541 | G27: 0.0008115065448 | H27: 0.2263175835 | I27: 0.6532049479 | J27: 0.3002913344 | K27: 0.5479210947 | L27: 0.502646604 | M27: 0.6531621448 | N27: 0.4839918271 | O27: 0.6380442042 | P27: -2.314576981 | Q27: =+Spectre!C26*N27/L27 -> 1.737079471 | R27: 1.776285452
A28: 3826 | B28: 0.3826 | C28: 6.831405556 | D28: 1.035078038 | E28: 0.4256212458 | F28: 0.999251733 | G28: 0.000812724718 | H28: 0.2262406882 | I28: 0.6526746587 | J28: 0.3005847509 | K28: 0.5481887725 | L28: 0.5029273751 | M28: 0.6535269917 | N28: 0.4842770462 | O28: 0.6384202073 | P28: -2.311577726 | Q28: =+Spectre!C27*N28/L28 -> 1.747068835 | R28: 1.786500277
A29: 3827 | B29: 0.3827 | C29: 6.827835913 | D29: 1.035055359 | E29: 0.4251672428 | F29: 0.9992506101 | G29: 0.0008139447199 | H29: 0.2261638392 | I29: 0.6521450267 | J29: 0.3008780901 | K29: 0.5484562493 | L29: 0.5032079548 | M29: 0.6538915899 | N29: 0.4845620798 | O29: 0.6387959657 | P29: -2.308582094 | Q29: =+Spectre!C28*N29/L29 -> 1.709631634 | R29: 1.748218117
A30: 3828 | B30: 0.3828 | C30: 6.824269066 | D30: 1.0350327 | E30: 0.4247138478 | F30: 0.9992494856 | G30: 0.0008151665531 | H30: 0.2260870363 | I30: 0.6516160506 | J30: 0.3011713516 | K30: 0.548723525 | L30: 0.5034883432 | M30: 0.6542559395 | N30: 0.4848469277 | O30: 0.6391714794 | P30: -2.305590082 | Q30: =+Spectre!C29*N30/L30 -> 1.661076496 | R30: 1.698567086
A31: 3829 | B31: 0.3829 | C31: 6.820705014 | D31: 1.035010059 | E31: 0.4242610599 | F31: 0.9992483594 | G31: 0.0008163902205 | H31: 0.2260102795 | I31: 0.6510877296 | J31: 0.3014645353 | K31: 0.5489905997 | L31: 0.5037685403 | M31: 0.6546200406 | N31: 0.4851315901 | O31: 0.6395467485 | P31: -2.302601683 | Q31: =+Spectre!C30*N31/L31 -> 1.641888015 | R31: 1.67894552
A32: 3830 | B32: 0.383 | C32: 6.817143753 | D32: 1.034987438 | E32: 0.423808878 | F32: 0.9992472316 | G32: 0.0008176157247 | H32: 0.2259335688 | I32: 0.6505600626 | J32: 0.3017576409 | K32: 0.5492574736 | L32: 0.5040485463 | M32: 0.6549838932 | N32: 0.4854160669 | O32: 0.639921773 | P32: -2.299616892 | Q32: =+Spectre!C31*N32/L32 -> 1.652731243 | R32: 1.69003348
A33: 3831 | B33: 0.3831 | C33: 6.813585281 | D33: 1.034964837 | E33: 0.4233573012 | F33: 0.999246102 | G33: 0.0008188430686 | H33: 0.2258569042 | I33: 0.6500330485 | J33: 0.3020506683 | K33: 0.5495241468 | L33: 0.5043283611 | M33: 0.6553474975 | N33: 0.4857003581 | O33: 0.6402965529 | P33: -2.296635704 | Q33: =+Spectre!C32*N33/L33 -> 1.6640902 | R33: 1.70164881
A34: 3832 | B34: 0.3832 | C34: 6.810029594 | D34: 1.034942254 | E34: 0.4229063285 | F34: 0.9992449707 | G34: 0.0008200722548 | H34: 0.2257802856 | I34: 0.6495066864 | J34: 0.3023436172 | K34: 0.5497906192 | L34: 0.5046079848 | M34: 0.6557108534 | N34: 0.4859844639 | O34: 0.6406710882 | P34: -2.293658112 | Q34: =+Spectre!C33*N34/L34 -> 1.685343648 | R34: 1.723381949
A35: 3833 | B35: 0.3833 | C35: 6.806476689 | D35: 1.034919691 | E35: 0.422455959 | F35: 0.9992438378 | G35: 0.0008213032863 | H35: 0.225703713 | I35: 0.6489809752 | J35: 0.3026364874 | K35: 0.5500568911 | L35: 0.5048874175 | M35: 0.656073961 | N35: 0.4862683842 | O35: 0.641045379 | P35: -2.290684113 | Q35: =+Spectre!C34*N35/L35 -> 1.707939823 | R35: 1.746488121
A36: 3834 | B36: 0.3834 | C36: 6.802926565 | D36: 1.034897147 | E36: 0.4220061915 | F36: 0.9992427031 | G36: 0.0008225361656 | H36: 0.2256271863 | I36: 0.648455914 | J36: 0.3029292787 | K36: 0.5503229626 | L36: 0.5051666591 | M36: 0.6564368205 | N36: 0.4865521191 | O36: 0.6414194254 | P36: -2.2877137 | Q36: =+Spectre!C35*N36/L36 -> 1.716478959 | R36: 1.755219985
A37: 3835 | B37: 0.3835 | C37: 6.799379217 | D37: 1.034874623 | E37: 0.4215570253 | F37: 0.9992415667 | G37: 0.0008237708957 | H37: 0.2255507055 | I37: 0.6479315017 | J37: 0.3032219909 | K37: 0.5505888336 | L37: 0.5054457097 | M37: 0.6567994317 | N37: 0.4868356685 | O37: 0.6417932273 | P37: -2.284746868 | Q37: =+Spectre!C36*N37/L37 -> 1.71597651 | R37: 1.754706196
A38: 3836 | B38: 0.3836 | C38: 6.795834643 | D38: 1.034852117 | E38: 0.4211084593 | F38: 0.9992404287 | G38: 0.0008250074792 | H38: 0.2254742705 | I38: 0.6474077374 | J38: 0.3035146237 | K38: 0.5508545044 | L38: 0.5057245695 | M38: 0.6571617949 | N38: 0.4871190325 | O38: 0.6421667848 | P38: -2.281783612 | Q38: =+Spectre!C37*N38/L38 -> 1.715314371 | R38: 1.754029113
A39: 3837 | B39: 0.3837 | C39: 6.79229284 | D39: 1.034829631 | E39: 0.4206604926 | F39: 0.9992392889 | G39: 0.000826245919 | H39: 0.2253978814 | I39: 0.6468846199 | J39: 0.303807177 | K39: 0.551119975 | L39: 0.5060032384 | M39: 0.6575239101 | N39: 0.4874022112 | O39: 0.6425400979 | P39: -2.278823926 | Q39: =+Spectre!C38*N39/L39 -> 1.712653156 | R39: 1.751307834
A40: 3838 | B40: =+A40/10000 -> 0.3838 | C40: =+(1/B40)^2 -> 6.788753805 | D40: =0.23465+1.076*100/(146-C40)+0.93161/(41-C40) -> 1.034807164 | E40: =9.4977*0.001*C40^2*D40*EXP(-h/7.996/1000) -> 0.4202131241 | F40: =+EXP(-0.0168*EXP(-15*ABS(B40-0.59))) -> 0.9992381474 | G40: =-2.5*LOG(F40) -> 0.0008274862179 | H40: =2.5*LOG(EXP(AOD*(B40/0.55)^(-1.3))) -> 0.2253215381 | I40: =+E40+G40+H40 -> 0.6463621484 | J40: =10^(-0.4*I40*ma) -> 0.3040996505 | K40: =10^(-0.4*I40) -> 0.5513852455 | L40: =10^(-0.4*I40*ma_ref) -> 0.5062817164 | M40: =+L40/M$1 -> 0.6578857773 | N40: =10^(-0.4*I40*ma_target) -> 0.4876852045 | O40: =+N40/O$1 -> 0.6429131667 | P40: =(O40/M40-1)*100 -> -2.275867805 | Q40: =+Spectre!C39*N40/L40 -> 1.70987457 | R40: 1.748466535
A41: 3839 | B41: 0.3839 | C41: 6.785217535 | D41: 1.034784716 | E41: 0.419766353 | F41: 0.9992370042 | G41: 0.0008287283786 | H41: 0.2252452404 | I41: 0.6458403218 | J41: 0.3043920441 | K41: 0.551650316 | L41: 0.5065600037 | M41: 0.6582473966 | N41: 0.4879680125 | O41: 0.6432859912 | P41: -2.272915244 | Q41: =+Spectre!C40*N41/L41 -> 1.701231321 | R41: 1.739628207
A42: 3840 | B42: 0.384 | C42: 6.781684028 | D42: 1.034762287 | E42: 0.4193201782 | F42: 0.9992358593 | G42: 0.000829972404 | H42: 0.2251689885 | I42: 0.6453191392 | J42: 0.3046843574 | K42: 0.5519151866 | L42: 0.5068381003 | M42: 0.6586087681 | N42: 0.4882506353 | O42: 0.6436585715 | P42: -2.269966237 | Q42: =+Spectre!C41*N42/L42 -> 1.689446522 | R42: 1.727577425
A43: 3841 | B43: 0.3841 | C43: 6.77815328 | D43: 1.034739877 | E43: 0.4188745989 | F43: 0.9992347126 | G43: 0.0008312182968 | H43: 0.2250927823 | I43: 0.6447985994 | J43: 0.3049765904 | K43: 0.5521798574 | L43: 0.5071160062 | M43: 0.6589698919 | N43: 0.4885330727 | O43: 0.6440309075 | P43: -2.267020779 | Q43: =+Spectre!C42*N43/L43 -> 1.695873587 | R43: 1.734149549
A44: 3842 | B44: 0.3842 | C44: 6.774625289 | D44: 1.034717486 | E44: 0.4184296139 | F44: 0.9992335643 | G44: 0.0008324660598 | H44: 0.2250166216 | I44: 0.6442787016 | J44: 0.3052687427 | K44: 0.5524443285 | L44: 0.5073937215 | M44: 0.6593307679 | N44: 0.488815325 | O44: 0.6444029993 | P44: -2.264078865 | Q44: =+Spectre!C43*N44/L44 -> 1.734361353 | R44: 1.773505986
A45: 3843 | B45: 0.3843 | C45: 6.771100051 | D45: 1.034695115 | E45: 0.4179852225 | F45: 0.9992324142 | G45: 0.0008337156959 | H45: 0.2249405066 | I45: 0.6437594448 | J45: 0.3055608142 | K45: 0.5527085999 | L45: 0.5076712462 | M45: 0.6596913963 | N45: 0.489097392 | O45: 0.644774847 | P45: -2.261140489 | Q45: =+Spectre!C44*N45/L45 -> 1.771019232 | R45: 1.810991236
A46: 3844 | B46: 0.3844 | C46: 6.767577565 | D46: 1.034672762 | E46: 0.4175414236 | F46: 0.9992312624 | G46: 0.0008349672078 | H46: 0.224864437 | I46: 0.6432408279 | J46: 0.3058528047 | K46: 0.5529726719 | L46: 0.5079485804 | M46: 0.6600517772 | N46: 0.4893792739 | O46: 0.6451464506 | P46: -2.258205647 | Q46: =+Spectre!C45*N46/L46 -> 1.795185221 | R46: 1.835702652
A47: 3845 | B47: 0.3845 | C47: 6.764057826 | D47: 1.034650428 | E47: 0.4170982163 | F47: 0.9992301089 | G47: 0.0008362205984 | H47: 0.224788413 | I47: 0.6427228499 | J47: 0.3061447139 | K47: 0.5532365445 | L47: 0.5082257242 | M47: 0.6604119105 | N47: 0.4896609707 | O47: 0.6455178102 | P47: -2.255274333 | Q47: =+Spectre!C46*N47/L47 -> 1.8171722 | R47: 1.858185879
A48: 3846 | B48: 0.3846 | C48: 6.760540832 | D48: 1.034628114 | E48: 0.4166555996 | F48: 0.9992289536 | G48: 0.0008374758706 | H48: 0.2247124345 | I48: 0.6422055099 | J48: 0.3064365417 | K48: 0.5535002177 | L48: 0.5085026775 | M48: 0.6607717964 | N48: 0.4899424823 | O48: 0.6458889257 | P48: -2.252346541 | Q48: =+Spectre!C47*N48/L48 -> 1.826382252 | R48: 1.867603802
A49: 3847 | B49: 0.3847 | C49: 6.757026581 | D49: 1.034605818 | E49: 0.4162135726 | F49: 0.9992277966 | G49: 0.000838733027 | H49: 0.2246365013 | I49: 0.641688807 | J49: 0.3067282879 | K49: 0.5537636917 | L49: 0.5087794404 | M49: 0.6611314349 | N49: 0.4902238089 | O49: 0.6462597972 | P49: -2.249422266 | Q49: =+Spectre!C48*N49/L49 -> 1.821239491 | R49: 1.862344969
A50: 3848 | B50: 0.3848 | C50: 6.75351507 | D50: 1.034583541 | E50: 0.4157721343 | F50: 0.9992266379 | G50: 0.0008399920706 | H50: 0.2245606136 | I50: 0.64117274 | J50: 0.3070199521 | K50: 0.5540269666 | L50: 0.5090560131 | M50: 0.6614908262 | N50: 0.4905049504 | O50: 0.6466304248 | P50: -2.246501504 | Q50: =+Spectre!C49*N50/L50 -> 1.817219517 | R50: 1.858234264
A51: 3849 | B51: 0.3849 | C51: 6.750006294 | D51: 1.034561283 | E51: 0.4153312839 | F51: 0.9992254774 | G51: 0.0008412530042 | H51: 0.2244847712 | I51: 0.640657308 | J51: 0.3073115344 | K51: 0.5542900425 | L51: 0.5093323955 | M51: 0.6618499702 | N51: 0.4907859069 | O51: 0.6470008085 | P51: -2.243584249 | Q51: =+Spectre!C50*N51/L51 -> 1.815170611 | R51: 1.856139114
A52: 3850 | B52: 0.385 | C52: 6.746500253 | D52: 1.034539044 | E52: 0.4148910202 | F52: 0.9992243152 | G52: 0.0008425158305 | H52: 0.2244089741 | I52: 0.6401425101 | J52: 0.3076030343 | K52: 0.5545529194 | L52: 0.5096085877 | M52: 0.662208867 | N52: 0.4910666785 | O52: 0.6473709483 | P52: -2.240670495 | Q52: =+Spectre!C51*N52/L52 -> 1.813275988 | R52: 1.854201729
A53: 3851 | B53: 0.3851 | C53: 6.742996943 | D53: 1.034516824 | E53: 0.4144513425 | F53: 0.9992231513 | G53: 0.0008437805526 | H53: 0.2243332222 | I53: 0.6396283453 | J53: 0.3078944518 | K53: 0.5548155975 | L53: 0.5098845897 | M53: 0.6625675168 | N53: 0.4913472651 | O53: 0.6477408444 | P53: -2.237760238 | Q53: =+Spectre!C52*N53/L53 -> 1.813561686 | R53: 1.854493876
A54: 3852 | B54: 0.3852 | C54: 6.73949636 | D54: 1.034494623 | E54: 0.4140122497 | F54: 0.9992219856 | G54: 0.0008450471732 | H54: 0.2242575156 | I54: 0.6391148125 | J54: 0.3081857865 | K54: 0.5550780769 | L54: 0.5101604017 | M54: 0.6629259195 | N54: 0.4916276668 | O54: 0.6481104966 | P54: -2.234853472 | Q54: =+Spectre!C53*N54/L54 -> 1.81512231 | R54: 1.856089723
A55: 3853 | B55: 0.3853 | C55: 6.735998503 | D55: 1.034472441 | E55: 0.413573741 | F55: 0.9992208182 | G55: 0.0008463156951 | H55: 0.2241818542 | I55: 0.6386019109 | J55: 0.3084770384 | K55: 0.5553403576 | L55: 0.5104360235 | M55: 0.6632840753 | N55: 0.4919078835 | O55: 0.6484799051 | P55: -2.231950192 | Q55: =+Spectre!C54*N55/L55 -> 1.825687404 | R55: 1.866893272
A56: 3854 | B56: 0.3854 | C56: 6.732503368 | D56: 1.034450277 | E56: 0.4131358154 | F56: 0.999219649 | G56: 0.0008475861212 | H56: 0.224106238 | I56: 0.6380896394 | J56: 0.3087682072 | K56: 0.5556024399 | L56: 0.5107114554 | M56: 0.6636419842 | N56: 0.4921879155 | O56: 0.6488490699 | P56: -2.229050393 | Q56: =+Spectre!C55*N56/L56 -> 1.865565655 | R56: 1.907671577
A57: 3855 | B57: 0.3855 | C57: 6.729010953 | D57: 1.034428132 | E57: 0.4126984719 | F57: 0.999218478 | G57: 0.0008488584544 | H57: 0.2240306668 | I57: 0.6375779971 | J57: 0.3090592927 | K57: 0.5558643236 | L57: 0.5109866974 | M57: 0.6639996463 | N57: 0.4924677626 | O57: 0.6492179911 | P57: -2.22615407 | Q57: =+Spectre!C56*N57/L57 -> 1.905145758 | R57: 1.948145005
A58: 3856 | B58: 0.3856 | C58: 6.725521255 | D58: 1.034406006 | E58: 0.4122617096 | F58: 0.9992173053 | G58: 0.0008501326975 | H58: 0.2239551407 | I58: 0.637066983 | J58: 0.3093502948 | K58: 0.5561260091 | L58: 0.5112617495 | M58: 0.6643570616 | N58: 0.492747425 | O58: 0.6495866687 | P58: -2.223261217 | Q58: =+Spectre!C57*N58/L58 -> 1.875055701 | R58: 1.917375813
A59: 3857 | B59: 0.3857 | C59: 6.72203427 | D59: 1.034383899 | E59: 0.4118255276 | F59: 0.9992161309 | G59: 0.0008514088534 | H59: 0.2238796597 | I59: 0.6365565962 | J59: 0.3096412131 | K59: 0.5563874963 | L59: 0.5115366117 | M59: 0.6647142303 | N59: 0.4930269026 | O59: 0.6499551028 | P59: -2.22037183 | Q59: =+Spectre!C58*N59/L59 -> 1.813903603 | R59: 1.854843509
A60: 3858 | B60: 0.3858 | C60: 6.718549997 | D60: 1.03436181 | E60: 0.411389925 | F60: 0.9992149546 | G60: 0.000852686925 | H60: 0.2238042237 | I60: 0.6360468356 | J60: 0.3099320475 | K60: 0.5566487854 | L60: 0.5118112842 | M60: 0.6650711523 | N60: 0.4933061955 | O60: 0.6503232933 | P60: -2.217485902 | Q60: =+Spectre!C59*N60/L60 -> 1.781038119 | R60: 1.821236249
A61: 3859 | B61: 0.3859 | C61: 6.715068432 | D61: 1.03433974 | E61: 0.4109549008 | F61: 0.9992137766 | G61: 0.0008539669152 | H61: 0.2237288326 | I61: 0.6355377003 | J61: 0.3102227979 | K61: 0.5569098764 | L61: 0.512085767 | M61: 0.6654278279 | N61: 0.4935853037 | O61: 0.6506912404 | P61: -2.21460343 | Q61: =+Spectre!C60*N61/L61 -> 1.802928008 | R61: 1.843620195
A62: 3860 | B62: 0.386 | C62: 6.711589573 | D62: 1.034317689 | E62: 0.4105204542 | F62: 0.9992125969 | G62: 0.0008552488267 | H62: 0.2236534864 | I62: 0.6350291894 | J62: 0.3105134639 | K62: 0.5571707695 | L62: 0.5123600601 | M62: 0.665784257 | N62: 0.4938642273 | O62: 0.651058944 | P62: -2.211724408 | Q62: =+Spectre!C61*N62/L62 -> 1.821437777 | R62: 1.86254773
A63: 3861 | B63: 0.3861 | C63: 6.708113416 | D63: 1.034295657 | E63: 0.4100865841 | F63: 0.9992114154 | G63: 0.0008565326626 | H63: 0.2235781851 | I63: 0.6345213019 | J63: 0.3108040455 | K63: 0.5574314648 | L63: 0.5126341636 | M63: 0.6661404397 | N63: 0.4941429662 | O63: 0.6514264043 | P63: -2.208848831 | Q63: =+Spectre!C62*N63/L63 -> 1.815217263 | R63: 1.856186819
A64: 3862 | B64: 0.3862 | C64: 6.704639959 | D64: 1.034273643 | E64: 0.4096532896 | F64: 0.9992102321 | G64: 0.0008578184257 | H64: 0.2235029287 | I64: 0.6340140368 | J64: 0.3110945424 | K64: 0.5576919623 | L64: 0.5129080775 | M64: 0.666496376 | N64: 0.4944215206 | O64: 0.6517936213 | P64: -2.205976693 | Q64: =+Spectre!C63*N64/L64 -> 1.802652646 | R64: 1.843338617
A65: 3863 | B65: 0.3863 | C65: 6.7011692 | D65: 1.034251647 | E65: 0.40922057 | F65: 0.999209047 | G65: 0.0008591061189 | H65: 0.2234277171 | I65: 0.6335073932 | J65: 0.3113849544 | K65: 0.5579522622 | L65: 0.5131818019 | M65: 0.6668520662 | N65: 0.4946998905 | O65: 0.652160595 | P65: -2.20310799 | Q65: =+Spectre!C64*N65/L65 -> 1.802709451 | R65: 1.843396705
A66: 3864 | B66: 0.3864 | C66: 6.697701135 | D66: 1.03422967 | E66: 0.4087884241 | F66: 0.9992078601 | G66: 0.000860395745 | H66: 0.2233525502 | I66: 0.6330013701 | J66: 0.3116752813 | K66: 0.5582123645 | L66: 0.5134553369 | M66: 0.6672075102 | N66: 0.4949780758 | O66: 0.6525273255 | P66: -2.200242717 | Q66: =+Spectre!C65*N66/L66 -> 1.819001498 | R66: 1.860056464
A67: 3865 | B67: 0.3865 | C67: 6.694235761 | D67: 1.034207712 | E67: 0.4083568511 | F67: 0.9992066715 | G67: 0.0008616873071 | H67: 0.2232774281 | I67: 0.6324959665 | J67: 0.3119655229 | K67: 0.5584722694 | L67: 0.5137286825 | M67: 0.667562708 | N67: 0.4952560767 | O67: 0.6528938128 | P67: -2.197380868 | Q67: =+Spectre!C66*N67/L67 -> 1.832472842 | R67: =+Q67/R$1 -> 1.873831857
A68: 3866 | B68: 0.3866 | C68: 6.690773076 | D68: 1.034185773 | E68: 0.4079258502 | F68: 0.9992054811 | G68: 0.0008629808079 | H68: 0.2232023506 | I68: 0.6319911816 | J68: 0.3122556791 | K68: 0.558731977 | L68: 0.5140018388 | M68: 0.6679176599 | N68: 0.4955338932 | O68: 0.653260057 | P68: -2.194522438 | Q68: =+Spectre!C67*N68/L68 -> 1.832211555 | R68: 1.873564673
A69: 3867 | B69: 0.3867 | C69: 6.687313077 | D69: 1.034163852 | E69: 0.4074954203 | F69: 0.9992042889 | G69: 0.0008642762505 | H69: 0.2231273178 | I69: 0.6314870144 | J69: 0.3125457496 | K69: 0.5589914874 | L69: 0.5142748059 | M69: 0.6682723658 | N69: 0.4958115253 | O69: 0.6536260581 | P69: -2.191667423 | Q69: =+Spectre!C68*N69/L69 -> 1.830993567 | R69: 1.872319195
A70: 3868 | B70: 0.3868 | C70: 6.683855761 | D70: 1.034141949 | E70: 0.4070655605 | F70: 0.9992030949 | G70: 0.0008655736376 | H70: 0.2230523297 | I70: 0.6309834638 | J70: 0.3128357342 | K70: 0.5592508006 | L70: 0.5145475837 | M70: 0.6686268259 | N70: 0.496088973 | O70: 0.6539918162 | P70: -2.188815816 | Q70: =+Spectre!C69*N70/L70 -> 1.809962697 | R70: 1.850813657
A71: 3869 | B71: 0.3869 | C71: 6.680401126 | D71: 1.034120065 | E71: 0.4066362701 | F71: 0.9992018991 | G71: 0.0008668729723 | H71: 0.2229773861 | I71: 0.6304805291 | J71: 0.3131256328 | K71: 0.5595099167 | L71: 0.5148201724 | M71: 0.6689810402 | N71: 0.4963662364 | O71: 0.6543573313 | P71: -2.185967614 | Q71: =+Spectre!C70*N71/L71 -> 1.773004368 | R71: 1.813021176
A72: 3870 | B72: 0.387 | C72: 6.676949168 | D72: 1.034098199 | E72: 0.4062075479 | F72: 0.9992007016 | G72: 0.0008681742575 | H72: 0.222902487 | I72: 0.6299782092 | J72: 0.3134154451 | K72: 0.559768836 | L72: 0.5150925719 | M72: 0.6693350087 | N72: 0.4966433156 | O72: 0.6547226034 | P72: -2.183122811 | Q72: =+Spectre!C71*N72/L72 -> 1.744175589 | R72: 1.78354173
A73: 3871 | B73: 0.3871 | C73: 6.673499886 | D73: 1.034076352 | E73: 0.4057793932 | F73: 0.9991995022 | G73: 0.0008694774961 | H73: 0.2228276324 | I73: 0.6294765032 | J73: 0.313705171 | K73: 0.5600275584 | L73: 0.5153647825 | M73: 0.6696887316 | N73: 0.4969202105 | O73: 0.6550876327 | P73: -2.180281402 | Q73: =+Spectre!C72*N73/L73 -> 1.744506358 | R73: 1.783879965
A74: 3872 | B74: 0.3872 | C74: 6.670053275 | D74: 1.034054523 | E74: 0.405351805 | F74: 0.999198301 | G74: 0.000870782691 | H74: 0.2227528223 | I74: 0.6289754101 | J74: 0.3139948103 | K74: 0.5602860841 | L74: 0.515636804 | M74: 0.670042209 | N74: 0.4971969212 | O74: 0.6554524192 | P74: -2.177443383 | Q74: =+Spectre!C73*N74/L74 -> 1.745240491 | R74: 1.784630667
A75: 3873 | B75: 0.3873 | C75: 6.666609334 | D75: 1.034032713 | E75: 0.4049247825 | F75: 0.9991970981 | G75: 0.0008720898451 | H75: 0.2226780567 | I75: 0.628474929 | J75: 0.3142843627 | K75: 0.5605444132 | L75: 0.5159086367 | M75: 0.6703954408 | N75: 0.4974734478 | O75: 0.6558169629 | P75: -2.174608747 | Q75: =+Spectre!C74*N75/L75 -> 1.745863087 | R75: 1.785267315
A76: 3874 | B76: 0.3874 | C76: 6.663168059 | D76: 1.034010921 | E76: 0.4044983247 | F76: 0.9991958933 | G76: 0.0008733989615 | H76: 0.2226033354 | I76: 0.627975059 | J76: 0.3145738281 | K76: 0.5608025457 | L76: 0.5161802804 | M76: 0.6707484272 | N76: 0.4977497902 | O76: 0.6561812639 | P76: -2.17177749 | Q76: =+Spectre!C75*N76/L76 -> 1.746272579 | R76: 1.785686049
A77: 3875 | B77: 0.3875 | C77: 6.659729448 | D77: 1.033989147 | E77: 0.4040724307 | F77: 0.9991946867 | G77: 0.000874710043 | H77: 0.2225286585 | I77: 0.6274757992 | J77: 0.3148632064 | K77: 0.5610604818 | L77: 0.5164517354 | M77: 0.6711011683 | N77: 0.4980259486 | O77: 0.6565453222 | P77: -2.168949607 | Q77: =+Spectre!C76*N77/L77 -> 1.743716677 | R77: 1.783072461
A78: 3876 | B78: 0.3876 | C78: 6.656293499 | D78: 1.033967391 | E78: 0.4036470996 | F78: 0.9991934783 | G78: 0.0008760230926 | H78: 0.2224540258 | I78: 0.6269771485 | J78: 0.3151524972 | K78: 0.5613182216 | L78: 0.5167230017 | M78: 0.6714536642 | N78: 0.4983019229 | O78: 0.6569091379 | P78: -2.166125093 | Q78: =+Spectre!C77*N78/L78 -> 1.73378323 | R78: 1.772914815
A79: 3877 | B79: 0.3877 | C79: 6.652860208 | D79: 1.033945654 | E79: 0.4032223306 | F79: 0.9991922681 | G79: 0.0008773381133 | H79: 0.2223794375 | I79: 0.6264791062 | J79: 0.3154417004 | K79: 0.5615757652 | L79: 0.5169940792 | M79: 0.6718059149 | N79: 0.4985777133 | O79: 0.657272711 | P79: -2.163303944 | Q79: =+Spectre!C78*N79/L79 -> 1.725063189 | R79: 1.763997963
A80: 3878 | B80: 0.3878 | C80: 6.649429572 | D80: 1.033923936 | E80: 0.4027981227 | F80: 0.9991910561 | G80: 0.0008786551079 | H80: 0.2223048934 | I80: 0.6259816712 | J80: 0.3157308159 | K80: 0.5618331126 | L80: 0.5172649682 | M80: 0.6721579204 | N80: 0.4988533196 | O80: 0.6576360416 | P80: -2.160486153 | Q80: =+Spectre!C79*N80/L80 -> 1.74119232 | R80: 1.780491128
A81: 3879 | B81: 0.3879 | C81: 6.646001589 | D81: 1.033902235 | E81: 0.402374475 | F81: 0.9991898423 | G81: 0.0008799740796 | H81: 0.2222303934 | I81: 0.6254848426 | J81: 0.3160198435 | K81: 0.5620902641 | L81: 0.5175356686 | M81: 0.672509681 | N81: 0.4991287421 | O81: 0.6579991298 | P81: -2.157671717 | Q81: =+Spectre!C80*N81/L81 -> 1.764166326 | R81: 1.803983659
A82: 3880 | B82: 0.388 | C82: 6.642576257 | D82: 1.033880553 | E82: 0.4019513867 | F82: 0.9991886266 | G82: 0.0008812950312 | H82: 0.2221559377 | I82: 0.6249886194 | J82: 0.3163087829 | K82: 0.5623472196 | L82: 0.5178061804 | M82: 0.6728611966 | N82: 0.4994039807 | O82: 0.6583619756 | P82: -2.154860629 | Q82: =+Spectre!C81*N82/L82 -> 1.771177807 | R82: 1.81115339
A83: 3881 | B83: 0.3881 | C83: 6.639153572 | D83: 1.033858889 | E83: 0.4015288569 | F83: 0.9991874091 | G83: 0.0008826179657 | H83: 0.222081526 | I83: 0.6244930009 | J83: 0.3165976339 | K83: 0.5626039794 | L83: 0.5180765039 | M83: 0.6732124673 | N83: 0.4996790354 | O83: 0.658724579 | P83: -2.152052886 | Q83: =+Spectre!C82*N83/L83 -> 1.753445783 | R83: 1.793021153
A84: 3882 | B84: 0.3882 | C84: 6.635733531 | D84: 1.033837243 | E84: 0.4011068846 | F84: 0.9991861898 | G84: 0.0008839428861 | H84: 0.2220071585 | I84: 0.623997986 | J84: 0.3168863965 | K84: 0.5628605434 | L84: 0.518346639 | M84: 0.6735634933 | N84: 0.4999539064 | O84: 0.6590869401 | P84: -2.149248483 | Q84: =+Spectre!C83*N84/L84 -> 1.738801821 | R84: 1.778046676
A85: 3883 | B85: 0.3883 | C85: 6.632316133 | D85: 1.033815616 | E85: 0.400685469 | F85: 0.9991849687 | G85: 0.0008852697953 | H85: 0.221932835 | I85: 0.6235035738 | J85: 0.3171750703 | K85: 0.5631169118 | L85: 0.5186165857 | M85: 0.6739142745 | N85: 0.5002285936 | O85: 0.659449059 | P85: -2.146447413 | Q85: =+Spectre!C84*N85/L85 -> 1.740276314 | R85: 1.779554448
A86: 3884 | B86: 0.3884 | C86: 6.628901374 | D86: 1.033794006 | E86: 0.4002646092 | F86: 0.9991837457 | G86: 0.0008865986964 | H86: 0.2218585555 | I86: 0.6230097634 | J86: 0.3174636553 | K86: 0.5633730847 | L86: 0.5188863442 | M86: 0.6742648112 | N86: 0.5005030971 | O86: 0.6598109357 | P86: -2.143649673 | Q86: =+Spectre!C85*N86/L86 -> 1.743191164 | R86: 1.782535087
A87: 3885 | B87: 0.3885 | C87: 6.625489251 | D87: 1.033772415 | E87: 0.3998443043 | F87: 0.9991825209 | G87: 0.0008879295924 | H87: 0.22178432 | I87: 0.6225165539 | J87: 0.3177521512 | K87: 0.5636290623 | L87: 0.5191559146 | M87: 0.6746151032 | N87: 0.500777417 | O87: 0.6601725703 | P87: -2.140855258 | Q87: =+Spectre!C86*N87/L87 -> 1.756952083 | R87: 1.796606591
A88: 3886 | B88: 0.3886 | C88: 6.622079762 | D88: 1.033750842 | E88: 0.3994245535 | F88: 0.9991812943 | G88: 0.0008892624862 | H88: 0.2217101284 | I88: 0.6220239443 | J88: 0.3180405578 | K88: 0.5638848445 | L88: 0.5194252967 | M88: 0.6749651509 | N88: 0.5010515532 | O88: 0.6605339629 | P88: -2.138064162 | Q88: =+Spectre!C87*N88/L88 -> 1.780443729 | R88: 1.820628444
A89: 3887 | B89: 0.3887 | C89: 6.618672904 | D89: 1.033729287 | E89: 0.3990053558 | F89: 0.9991800658 | G89: 0.0008905973809 | H89: 0.2216359807 | I89: 0.6215319339 | J89: 0.3183288751 | K89: 0.5641404316 | L89: 0.5196944909 | M89: 0.6753149541 | N89: 0.5013255059 | O89: 0.6608951134 | P89: -2.135276381 | Q89: =+Spectre!C88*N89/L89 -> 1.793779635 | R89: 1.834265343
A90: 3888 | B90: 0.3888 | C90: 6.615268675 | D90: 1.03370775 | E90: 0.3985867103 | F90: 0.9991788355 | G90: 0.0008919342794 | H90: 0.2215618769 | I90: 0.6210405215 | J90: 0.3186171027 | K90: 0.5643958236 | L90: 0.519963497 | M90: 0.675664513 | N90: 0.501599275 | O90: 0.661256022 | P90: -2.132491909 | Q90: =+Spectre!C89*N90/L90 -> 1.750882203 | R90: 1.790399713
A91: 3889 | B91: 0.3889 | C91: 6.611867072 | D91: 1.033686231 | E91: 0.3981686163 | F91: 0.9991776033 | G91: 0.0008932731847 | H91: 0.2214878169 | I91: 0.6205497064 | J91: 0.3189052405 | K91: 0.5646510206 | L91: 0.5202323151 | M91: 0.6760138277 | N91: 0.5018728606 | O91: 0.6616166886 | P91: -2.129710743 | Q91: =+Spectre!C90*N91/L91 -> 1.706392132 | R91: 1.744905499
A92: 3890 | B92: 0.389 | C92: 6.608468091 | D92: 1.03366473 | E92: 0.3977510728 | F92: 0.9991763693 | G92: 0.0008946140999 | H92: 0.2214138007 | I92: 0.6200594876 | J92: 0.3191932883 | K92: 0.5649060227 | L92: 0.5205009454 | M92: 0.6763628983 | N92: 0.5021462628 | O92: 0.6619771135 | P92: -2.126932877 | Q92: =+Spectre!C91*N92/L92 -> 1.713888218 | R92: 1.752570772
A93: 3891 | B93: 0.3891 | C93: 6.605071731 | D93: 1.033643247 | E93: 0.3973340789 | F93: 0.9991751335 | G93: 0.000895957028 | H93: 0.2213398282 | I93: 0.6195698642 | J93: 0.319481246 | K93: 0.5651608301 | L93: 0.5207693879 | M93: 0.6767117248 | N93: 0.5024194816 | O93: 0.6623372965 | P93: -2.124158306 | Q93: =+Spectre!C92*N93/L93 -> 1.749986721 | R93: 1.789484019
A94: 3892 | B94: 0.3892 | C94: 6.601677988 | D94: 1.033621782 | E94: 0.3969176338 | F94: 0.9991738958 | G94: 0.000897301972 | H94: 0.2212658995 | I94: 0.6190808353 | J94: 0.3197691134 | K94: 0.5654154428 | L94: 0.5210376427 | M94: 0.6770603074 | N94: 0.502692517 | O94: 0.6626972379 | P94: -2.121387025 | Q94: =+Spectre!C93*N94/L94 -> 1.771303053 | R94: 1.811281462
A95: 3893 | B95: 0.3893 | C95: 6.59828686 | D95: 1.033600335 | E95: 0.3965017366 | F95: 0.9991726562 | G95: 0.0008986489349 | H95: 0.2211920144 | I95: 0.6185924 | J95: 0.3200568902 | K95: 0.5656698609 | L95: 0.5213057097 | M95: 0.6774086461 | N95: 0.5029653691 | O95: 0.6630569376 | P95: -2.11861903 | Q95: =+Spectre!C94*N95/L95 -> 1.747083513 | R95: 1.786515286
A96: 3894 | B96: 0.3894 | C96: 6.594898345 | D96: 1.033578906 | E96: 0.3960863865 | F96: 0.9991714147 | G96: 0.0008999979198 | H96: 0.221118173 | I96: 0.6181045574 | J96: 0.3203445764 | K96: 0.5659240846 | L96: 0.5215735891 | M96: 0.6777567409 | N96: 0.503238038 | O96: 0.6634163957 | P96: -2.115854316 | Q96: =+Spectre!C95*N96/L96 -> 1.724846461 | R96: 1.763776342
A97: 3895 | B97: 0.3895 | C97: 6.591512439 | D97: 1.033557495 | E97: 0.3956715825 | F97: 0.9991701715 | G97: 0.0009013489297 | H97: 0.2210443751 | I97: 0.6176173066 | J97: 0.3206321717 | K97: 0.5661781139 | L97: 0.521841281 | M97: 0.6781045921 | N97: 0.5035105236 | O97: 0.6637756122 | P97: -2.113092878 | Q97: =+Spectre!C96*N97/L97 -> 1.727749038 | R97: 1.766744431
A98: 3896 | B98: 0.3896 | C98: 6.58812914 | D98: 1.033536102 | E98: 0.3952573238 | F98: 0.9991689263 | G98: 0.0009027019676 | H98: 0.2209706209 | I98: 0.6171306467 | J98: 0.3209196759 | K98: 0.566431949 | L98: 0.5221087854 | M98: 0.6784521996 | N98: 0.5037828261 | O98: 0.6641345873 | P98: -2.11033471 | Q98: =+Spectre!C97*N98/L98 -> 1.73770776 | R98: 1.776927922
A99: 3897 | B99: 0.3897 | C99: 6.584748445 | D99: 1.033514727 | E99: 0.3948436096 | F99: 0.9991676793 | G99: 0.0009040570366 | H99: 0.2208969101 | I99: 0.6166445768 | J99: 0.3212070889 | K99: 0.56668559 | L99: 0.5223761023 | M99: 0.6787995635 | N99: 0.5040549454 | O99: 0.664493321 | P99: -2.107579809 | Q99: =+Spectre!C98*N99/L99 -> 1.751257284 | R99: 1.79078326
A100: 3898 | B100: 0.3898 | C100: 6.581370352 | D100: 1.03349337 | E100: 0.3944304389 | F100: 0.9991664304 | G100: 0.0009054141398 | H100: 0.2208232429 | I100: 0.616159096 | J100: 0.3214944105 | K100: 0.5669390369 | L100: 0.5226432319 | M100: 0.679146684 | N100: 0.5043268816 | O100: 0.6648518133 | P100: -2.104828169 | Q100: =+Spectre!C99*N100/L100 -> 1.771650584 | R100: 1.811636837
A101: 3899 | B101: 0.3899 | C101: 6.577994857 | D101: 1.03347203 | E101: 0.394017811 | F101: 0.9991651796 | G101: 0.0009067732801 | H101: 0.2207496191 | I101: 0.6156742034 | J101: 0.3217816405 | K101: 0.5671922899 | L101: 0.5229101742 | M101: 0.6794935611 | N101: 0.5045986348 | O101: 0.6652100643 | P101: -2.102079786 | Q101: =+Spectre!C100*N101/L101 -> 1.791250306 | R101: 1.831678926
A102: 3900 | B102: 0.39 | C102: 6.574621959 | D102: 1.033450709 | E102: 0.3936057249 | F102: 0.999163927 | G102: 0.0009081344606 | H102: 0.2206760387 | I102: 0.6151898981 | J102: 0.3220687788 | K102: 0.5674453491 | L102: 0.5231769292 | M102: 0.6798401949 | N102: 0.5048702051 | O102: 0.6655680741 | P102: -2.099334655 | Q102: =+Spectre!C101*N102/L102 -> 1.798679537 | R102: 1.839275835
A103: 3901 | B103: 0.3901 | C103: 6.571251655 | D103: 1.033429405 | E103: 0.3931941798 | F103: 0.9991626724 | G103: 0.0009094976845 | H103: 0.2206025017 | I103: 0.6147061792 | J103: 0.3223558252 | K103: 0.5676982145 | L103: 0.5234434971 | M103: 0.6801865855 | N103: 0.5051415924 | O103: 0.6659258427 | P103: -2.096592771 | Q103: =+Spectre!C102*N103/L103 -> 1.804804406 | R103: 1.845538943
A104: 3902 | B104: =+A104/10000 -> 0.3902 | C104: =+(1/B104)^2 -> 6.567883941 | D104: =0.23465+1.076*100/(146-C104)+0.93161/(41-C104) -> 1.033408119 | E104: =9.4977*0.001*C104^2*D104*EXP(-h/7.996/1000) -> 0.3927831749 | F104: =+EXP(-0.0168*EXP(-15*ABS(B104-0.59))) -> 0.999161416 | G104: =-2.5*LOG(F104) -> 0.0009108629547 | H104: =2.5*LOG(EXP(AOD*(B104/0.55)^(-1.3))) -> 0.2205290081 | I104: =+E104+G104+H104 -> 0.6142230459 | J104: =10^(-0.4*I104*ma) -> 0.3226427795 | K104: =10^(-0.4*I104) -> 0.5679508863 | L104: =10^(-0.4*I104*ma_ref) -> 0.5237098779 | M104: =+L104/M$1 -> 0.6805327329 | N104: =10^(-0.4*I104*ma_target) -> 0.5054127967 | O104: =+N104/O$1 -> 0.6662833702 | P104: =(O104/M104-1)*100 -> -2.09385413 | Q104: =+Spectre!C103*N104/L104 -> 1.811881095 | R104: 1.852775353
A105: 3903 | B105: 0.3903 | C105: 6.564518815 | D105: 1.033386851 | E105: 0.3923727092 | F105: 0.9991601577 | G105: 0.0009122302744 | H105: 0.2204555577 | I105: 0.6137404972 | J105: 0.3229296415 | K105: 0.5682033647 | L105: 0.5239760716 | M105: 0.6808786373 | N105: 0.5056838183 | O105: 0.6666406567 | P105: -2.091118726 | Q105: =+Spectre!C104*N105/L105 -> 1.820516169 | R105: 1.861605322
A106: 3904 | B106: 0.3904 | C106: 6.561156275 | D106: 1.0333656 | E106: 0.391962782 | F106: 0.9991588976 | G106: 0.0009135996465 | H106: 0.2203821507 | I106: 0.6132585323 | J106: 0.323216411 | K106: 0.5684556496 | L106: 0.5242420784 | M106: 0.6812242988 | N106: 0.505954657 | O106: 0.6669977021 | P106: -2.088386555 | Q106: =+Spectre!C105*N106/L106 -> 1.830592109 | R106: 1.871908676
A107: 3905 | B107: 0.3905 | C107: 6.557796318 | D107: 1.033344367 | E107: 0.3915533923 | F107: 0.9991576355 | G107: 0.0009149710743 | H107: 0.2203087868 | I107: 0.6127771502 | J107: 0.323503088 | K107: 0.5687077413 | L107: 0.5245078983 | M107: 0.6815697174 | N107: 0.506225313 | O107: 0.6673545067 | P107: -2.085657611 | Q107: =+Spectre!C106*N107/L107 -> 1.858648368 | R107: 1.900598166
A108: 3906 | B108: 0.3906 | C108: 6.554438941 | D108: 1.033323152 | E108: 0.3911445394 | F108: 0.9991563715 | G108: 0.0009163445608 | H108: 0.2202354662 | I108: 0.6122963502 | J108: 0.3237896721 | K108: 0.5689596397 | L108: 0.5247735313 | M108: 0.6819148932 | N108: 0.5064957863 | O108: 0.6677110704 | P108: -2.082931892 | Q108: =+Spectre!C107*N108/L108 -> 1.887980275 | R108: 1.930592096
A109: 3907 | B109: 0.3907 | C109: 6.551084142 | D109: 1.033301955 | E109: 0.3907362224 | F109: 0.9991551057 | G109: 0.000917720109 | H109: 0.2201621887 | I109: 0.6118161312 | J109: 0.3240761634 | K109: 0.5692113451 | L109: 0.5250389776 | M109: 0.6822598263 | N109: 0.506766077 | O109: 0.6680673933 | P109: -2.080209391 | Q109: =+Spectre!C108*N109/L109 -> 1.896271796 | R109: 1.939070757
A110: 3908 | B110: 0.3908 | C110: 6.547731918 | D110: 1.033280775 | E110: 0.3903284404 | F110: 0.9991538379 | G110: 0.0009190977222 | H110: 0.2200889543 | I110: 0.6113364925 | J110: 0.3243625614 | K110: 0.5694628575 | L110: 0.5253042372 | M110: 0.6826045168 | N110: 0.507036185 | O110: 0.6684234755 | P110: -2.077490104 | Q110: =+Spectre!C109*N110/L110 -> 1.891650209 | R110: 1.934344861
A111: 3909 | B111: 0.3909 | C111: 6.544382266 | D111: 1.033259613 | E111: 0.3899211926 | F111: 0.9991525683 | G111: 0.0009204774032 | H111: 0.2200157631 | I111: 0.6108574331 | J111: 0.3246488662 | K111: 0.569714177 | L111: 0.5255693101 | M111: 0.6829489648 | N111: 0.5073061105 | O111: 0.6687793171 | P111: -2.074774026 | Q111: =+Spectre!C110*N111/L111 -> 1.889532582 | R111: 1.932179439
A112: 3910 | B112: 0.391 | C112: 6.541035184 | D112: 1.033238469 | E112: 0.3895144782 | F112: 0.9991512967 | G112: 0.0009218591554 | H112: 0.2199426149 | I112: 0.6103789522 | J112: 0.3249350775 | K112: 0.5699653038 | L112: 0.5258341965 | M112: 0.6832931704 | N112: 0.5075758535 | O112: 0.669134918 | P112: -2.072061152 | Q112: =+Spectre!C111*N112/L112 -> 1.897248929 | R112: 1.940069944
A113: 3911 | B113: 0.3911 | C113: 6.537690669 | D113: 1.033217342 | E113: 0.3891082962 | F113: 0.9991500232 | G113: 0.0009232429817 | H113: 0.2198695097 | I113: 0.6099010489 | J113: 0.3252211952 | K113: 0.5702162379 | L113: 0.5260988964 | M113: 0.6836371336 | N113: 0.5078454141 | O113: 0.6694902785 | P113: -2.069351479 | Q113: =+Spectre!C112*N113/L113 -> 1.90503613 | R113: 1.948032902
A114: 3912 | B114: 0.3912 | C114: 6.534348719 | D114: 1.033196233 | E114: 0.388702646 | F114: 0.9991487478 | G114: 0.0009246288854 | H114: 0.2197964474 | I114: 0.6094237223 | J114: 0.3255072191 | K114: 0.5704669795 | L114: 0.5263634099 | M114: 0.6839808545 | N114: 0.5081147922 | O114: 0.6698453984 | P114: -2.066645 | Q114: =+Spectre!C113*N114/L114 -> 1.902990541 | R114: 1.945941144
A115: 3913 | B115: 0.3913 | C115: 6.53100933 | D115: 1.033175142 | E115: 0.3882975265 | F115: 0.9991474706 | G115: 0.0009260168694 | H115: 0.2197234282 | I115: 0.6089469716 | J115: 0.325793149 | K115: 0.5707175286 | L115: 0.5266277369 | M115: 0.6843243333 | N115: 0.508383988 | O115: 0.670200278 | P115: -2.063941712 | Q115: =+Spectre!C114*N115/L115 -> 1.898004042 | R115: 1.9408421
A116: 3914 | B116: 0.3914 | C116: 6.527672501 | D116: 1.033154068 | E116: 0.3878929371 | F116: 0.9991461913 | G116: 0.000927406937 | H116: 0.2196504518 | I116: 0.6084707958 | J116: 0.3260789848 | K116: 0.5709678854 | L116: 0.5268918777 | M116: 0.6846675701 | N116: 0.5086530015 | O116: 0.6705549172 | P116: -2.06124161 | Q116: =+Spectre!C115*N116/L116 -> 1.893212968 | R116: 1.935942891
A117: 3915 | B117: 0.3915 | C117: 6.524338228 | D117: 1.033133011 | E117: 0.3874888768 | F117: 0.9991449102 | G117: 0.0009287990913 | H117: 0.2195775183 | I117: 0.6079951942 | J117: 0.3263647263 | K117: 0.57121805 | L117: 0.5271558323 | M117: 0.6850105648 | N117: 0.5089218327 | O117: 0.6709093162 | P117: -2.058544689 | Q117: =+Spectre!C116*N117/L117 -> 1.889373729 | R117: 1.932017
A118: 3916 | B118: 0.3916 | C118: 6.52100651 | D118: 1.033111972 | E118: 0.3870853448 | F118: 0.9991436272 | G118: 0.0009301933354 | H118: 0.2195046276 | I118: 0.6075201658 | J118: 0.3266503733 | K118: 0.5714680225 | L118: 0.5274196007 | M118: 0.6853533176 | N118: 0.5091904817 | O118: 0.671263475 | P118: -2.055850944 | Q118: =+Spectre!C117*N118/L118 -> 1.884096239 | R118: 1.926620397
A119: 3917 | B119: 0.3917 | C119: 6.517677342 | D119: 1.033090951 | E119: 0.3866823404 | F119: 0.9991423422 | G119: 0.0009315896723 | H119: 0.2194317798 | I119: 0.6070457098 | J119: 0.3269359257 | K119: 0.5717178029 | L119: 0.5276831831 | M119: 0.6856958287 | N119: 0.5094589486 | O119: 0.6716173936 | P119: -2.053160372 | Q119: =+Spectre!C118*N119/L119 -> 1.911182785 | R119: 1.954318288
A120: 3918 | B120: 0.3918 | C120: 6.514350724 | D120: 1.033069947 | E120: 0.3862798625 | F120: 0.9991410553 | G120: 0.0009329881054 | H120: 0.2193589747 | I120: 0.6065718253 | J120: 0.3272213833 | K120: 0.5719673915 | L120: 0.5279465794 | M120: 0.686038098 | N120: 0.5097272334 | O120: 0.6719710722 | P120: -2.050472966 | Q120: =+Spectre!C119*N120/L120 -> 1.942959493 | R120: 1.986812198
A121: 3919 | B121: 0.3919 | C121: 6.511026652 | D121: 1.03304896 | E121: 0.3858779106 | F121: 0.9991397665 | G121: 0.0009343886377 | H121: 0.2192862123 | I121: 0.6060985115 | J121: 0.327506746 | K121: 0.5722167882 | L121: 0.5282097898 | M121: 0.6863801257 | N121: 0.5099953362 | O121: 0.6723245109 | P121: -2.047788723 | Q121: =+Spectre!C120*N121/L121 -> 1.955209637 | R121: 1.999338828
A122: 3920 | B122: 0.392 | C122: 6.507705123 | D122: 1.033027991 | E122: 0.3854764836 | F122: 0.9991384757 | G122: 0.0009357912724 | H122: 0.2192134926 | I122: 0.6056257674 | J122: 0.3277920135 | K122: 0.5724659933 | L122: 0.5284728143 | M122: 0.6867219118 | N122: 0.5102632569 | O122: 0.6726777096 | P122: -2.045107638 | Q122: =+Spectre!C121*N122/L122 -> 1.940411436 | R122: 1.984206631
A123: 3921 | B123: 0.3921 | C123: 6.504386135 | D123: 1.033007039 | E123: 0.3850755808 | F123: 0.999137183 | G123: 0.0009371960126 | H123: 0.2191408156 | I123: 0.6051535923 | J123: 0.3280771857 | K123: 0.5727150068 | L123: 0.528735653 | M123: 0.6870634565 | N123: 0.5105309957 | O123: 0.6730306684 | P123: -2.042429707 | Q123: =+Spectre!C122*N123/L123 -> 1.927813371 | R123: 1.971324228
A124: 3922 | B124: 0.3922 | C124: 6.501069686 | D124: 1.032986105 | E124: 0.3846752013 | F124: 0.9991358884 | G124: 0.0009386028615 | H124: 0.2190681812 | I124: 0.6046819853 | J124: 0.3283622625 | K124: 0.5729638289 | L124: 0.528998306 | M124: 0.6874047599 | N124: 0.5107985526 | O124: 0.6733833875 | P124: -2.039754924 | Q124: =+Spectre!C123*N124/L124 -> 1.926794271 | R124: 1.970282126
A125: 3923 | B125: 0.3923 | C125: 6.497755773 | D125: 1.032965188 | E125: 0.3842753443 | F125: 0.9991345918 | G125: 0.0009400118222 | H125: 0.2189955893 | I125: 0.6042109455 | J125: 0.3286472437 | K125: 0.5732124595 | L125: 0.5292607733 | M125: 0.687745822 | N125: 0.5110659277 | O125: 0.6737358668 | P125: -2.037083285 | Q125: =+Spectre!C124*N125/L125 -> 1.924968202 | R125: 1.968414842
A126: 3924 | B126: 0.3924 | C126: 6.494444392 | D126: 1.032944289 | E126: 0.3838760091 | F126: 0.9991332933 | G126: 0.000941422898 | H126: 0.2189230401 | I126: 0.6037404721 | J126: 0.3289321291 | K126: 0.573460899 | L126: 0.529523055 | M126: 0.6880866429 | N126: 0.511333121 | O126: 0.6740881065 | P126: -2.034414786 | Q126: =+Spectre!C125*N126/L126 -> 1.935337864 | R126: 1.979018549
A127: 3925 | B127: 0.3925 | C127: 6.491135543 | D127: 1.032923406 | E127: 0.3834771948 | F127: 0.9991319928 | G127: 0.000942836092 | H127: 0.2188505333 | I127: 0.6032705641 | J127: 0.3292169186 | K127: 0.5737091472 | L127: 0.5297851512 | M127: 0.6884272228 | N127: 0.5116001326 | O127: 0.6744401067 | P127: -2.031749422 | Q127: =+Spectre!C126*N127/L127 -> 1.953710777 | R127: 1.997806139
A128: 3926 | B128: 0.3926 | C128: 6.487829222 | D128: 1.032902542 | E128: 0.3830789005 | F128: 0.9991306904 | G128: 0.0009442514073 | H128: 0.218778069 | I128: 0.6028012209 | J128: 0.329501612 | K128: 0.5739572045 | L128: 0.5300470619 | M128: 0.6887675617 | N128: 0.5118669625 | O128: 0.6747918673 | P128: -2.029087188 | Q128: =+Spectre!C127*N128/L128 -> 1.967986279 | R128: 2.01240384
A129: 3927 | B129: 0.3927 | C129: 6.484525426 | D129: 1.032881694 | E129: 0.3826811254 | F129: 0.999129386 | G129: 0.0009456688473 | H129: 0.2187056471 | I129: 0.6023324414 | J129: 0.3297862091 | K129: 0.5742050708 | L129: 0.5303087873 | M129: 0.6891076596 | N129: 0.5121336108 | O129: 0.6751433885 | P129: -2.026428081 | Q129: =+Spectre!C128*N129/L129 -> 1.953515139 | R129: 1.997606086
A130: 3928 | B130: 0.3928 | C130: 6.481224153 | D130: 1.032860864 | E130: 0.3822838688 | F130: 0.9991280797 | G130: 0.0009470884149 | H130: 0.2186332677 | I130: 0.6018642249 | J130: 0.3300707099 | K130: 0.5744527463 | L130: 0.5305703273 | M130: 0.6894475168 | N130: 0.5124000775 | O130: 0.6754946704 | P130: -2.023772094 | Q130: =+Spectre!C129*N130/L130 -> 1.939191503 | R130: 1.982959164
A131: 3929 | B131: 0.3929 | C131: 6.4779254 | D131: 1.032840051 | E131: 0.3818871298 | F131: 0.9991267714 | G131: 0.0009485101136 | H131: 0.2185609306 | I131: 0.6013965706 | J131: 0.3303551141 | K131: 0.5747002311 | L131: 0.5308316821 | M131: 0.6897871333 | N131: 0.5126663627 | O131: 0.6758457129 | P131: -2.021119225 | Q131: =+Spectre!C130*N131/L131 -> 1.930128406 | R131: =+Q131/R$1 -> 1.973691512
A132: 3930 | B132: 0.393 | C132: 6.474629166 | D132: 1.032819255 | E132: 0.3814909077 | F132: 0.9991254611 | G132: 0.0009499339463 | H132: 0.2184886359 | I132: 0.6009294774 | J132: 0.3306394215 | K132: 0.5749475253 | L132: 0.5310928518 | M132: 0.6901265092 | N132: 0.5129324665 | O132: 0.6761965163 | P132: -2.018469467 | Q132: =+Spectre!C131*N132/L132 -> 1.923184958 | R132: 1.96659135
A133: 3931 | B133: 0.3931 | C133: 6.471335446 | D133: 1.032798476 | E133: 0.3810952015 | F133: 0.9991241489 | G133: 0.0009513599165 | H133: 0.2184163834 | I133: 0.6004629448 | J133: 0.3309236321 | K133: 0.575194629 | L133: 0.5313538363 | M133: 0.6904656445 | N133: 0.5131983888 | O133: 0.6765470805 | P133: -2.015822817 | Q133: =+Spectre!C132*N133/L133 -> 1.913923128 | R133: 1.957120481
A134: 3932 | B134: 0.3932 | C134: 6.468044239 | D134: 1.032777715 | E134: 0.3807000104 | F134: 0.9991228347 | G134: 0.0009527880272 | H134: 0.2183441732 | I134: 0.5999969717 | J134: 0.3312077456 | K134: 0.5754415423 | L134: 0.5316146359 | M134: 0.6908045394 | N134: 0.5134641298 | O134: 0.6768974056 | P134: -2.013179271 | Q134: =+Spectre!C133*N134/L134 -> 1.897721193 | R134: 1.940552867
A135: 3933 | B135: 0.3933 | C135: 6.464755543 | D135: 1.03275697 | E135: 0.3803053338 | F135: 0.9991215186 | G135: 0.0009542182816 | H135: 0.2182720052 | I135: 0.5995315573 | J135: 0.331491762 | K135: 0.5756882654 | L135: 0.5318752504 | M135: 0.691143194 | N135: 0.5137296895 | O135: 0.6772474918 | P135: -2.010538823 | Q135: =+Spectre!C134*N135/L135 -> 1.881387931 | R135: 1.923850963
A136: 3934 | B136: 0.3934 | C136: 6.461469354 | D136: 1.032736243 | E136: 0.3799111707 | F136: 0.9991202004 | G136: 0.0009556506831 | H136: 0.2181998795 | I136: 0.5990667009 | J136: 0.331775681 | K136: 0.5759347983 | L136: 0.5321356802 | M136: 0.6914816084 | N136: 0.513995068 | O136: 0.677597339 | P136: -2.007901469 | Q136: =+Spectre!C135*N136/L136 -> 1.872357986 | R136: 1.914617211
A137: 3935 | B137: 0.3935 | C137: 6.45818567 | D137: 1.032715533 | E137: 0.3795175204 | F137: 0.9991188803 | G137: 0.0009570852348 | H137: 0.2181277959 | I137: 0.5986024015 | J137: 0.3320595025 | K137: 0.5761811412 | L137: 0.5323959251 | M137: 0.6918197826 | N137: 0.5142602653 | O137: 0.6779469474 | P137: -2.005267205 | Q137: =+Spectre!C136*N137/L137 -> 1.864335397 | R137: 1.906413552
A138: 3936 | B138: 0.3936 | C138: 6.454904488 | D138: 1.032694841 | E138: 0.3791243821 | F138: 0.9991175582 | G138: 0.0009585219399 | H138: 0.2180557544 | I138: 0.5981386584 | J138: 0.3323432263 | K138: 0.5764272941 | L138: 0.5326559853 | M138: 0.6921577168 | N138: 0.5145252815 | O138: 0.678296317 | P138: -2.002636026 | Q138: =+Spectre!C137*N138/L138 -> 1.86579948 | R138: 1.907910679
A139: 3937 | B139: 0.3937 | C139: 6.451625806 | D139: 1.032674165 | E139: 0.3787317549 | F139: 0.9991162342 | G139: 0.0009599608017 | H139: 0.217983755 | I139: 0.5976754706 | J139: 0.3326268523 | K139: 0.5766732571 | L139: 0.5329158608 | M139: 0.692495411 | N139: 0.5147901166 | O139: 0.6786454479 | P139: -2.000007928 | Q139: =+Spectre!C138*N139/L139 -> 1.881911776 | R139: 1.924386631
A140: 3938 | B140: 0.3938 | C140: 6.448349622 | D140: 1.032653506 | E140: 0.3783396381 | F140: 0.9991149081 | G140: 0.0009614018234 | H140: 0.2179117976 | I140: 0.5972128375 | J140: 0.3329103804 | K140: 0.5769190305 | L140: 0.5331755517 | M140: 0.6928328654 | N140: 0.5150547707 | O140: 0.6789943402 | P140: -1.997382906 | Q140: =+Spectre!C139*N140/L140 -> 1.897315646 | R140: 1.940138166
A141: 3939 | B141: 0.3939 | C141: 6.445075933 | D141: 1.032632865 | E141: 0.3779480308 | F141: 0.9991135801 | G141: 0.0009628450082 | H141: 0.2178398822 | I141: 0.596750758 | J141: 0.3331938103 | K141: 0.5771646142 | L141: 0.5334350582 | M141: 0.69317008 | N141: 0.5153192438 | O141: 0.6793429939 | P141: -1.994760955 | Q141: =+Spectre!C140*N141/L141 -> 1.89839887 | R141: 1.941245839
A142: 3940 | B142: 0.394 | C142: 6.441804736 | D142: 1.03261224 | E142: 0.3775569323 | F142: 0.99911225 | G142: 0.0009642903595 | H142: 0.2177680089 | I142: 0.5962892315 | J142: 0.333477142 | K142: 0.5774100085 | L142: 0.5336943802 | M142: 0.693507055 | N142: 0.5155835361 | O142: 0.6796914092 | P142: -1.992142072 | Q142: =+Spectre!C141*N142/L142 -> 1.898392964 | R142: 1.9412398
A143: 3941 | B143: 0.3941 | C143: 6.438536029 | D143: 1.032591633 | E143: 0.3771663417 | F143: 0.999110918 | G143: 0.0009657378804 | H143: 0.2176961775 | I143: 0.595828257 | J143: 0.3337603753 | K143: 0.5776552133 | L143: 0.5339535178 | M143: 0.6938437904 | N143: 0.5158476475 | O143: 0.680039586 | P143: -1.989526252 | Q143: =+Spectre!C142*N143/L143 -> 1.889970571 | R143: 1.932627313
A144: 3942 | B144: 0.3942 | C144: 6.435269809 | D144: 1.032571042 | E144: 0.3767762583 | F144: 0.999109584 | G144: 0.0009671875742 | H144: 0.2176243879 | I144: 0.5953678338 | J144: 0.3340435099 | K144: 0.5779002289 | L144: 0.5342124712 | M144: 0.6941802863 | N144: 0.5161115781 | O144: 0.6803875246 | P144: -1.98691349 | Q144: =+Spectre!C143*N144/L144 -> 1.874025553 | R144: 1.916322415
A145: 3943 | B145: 0.3943 | C145: 6.432006074 | D145: 1.032550469 | E145: 0.3763866813 | F145: 0.9991082479 | G145: 0.0009686394442 | H145: 0.2175526403 | I145: 0.594907961 | J145: 0.3343265459 | K145: 0.5781450553 | L145: 0.5344712403 | M145: 0.6945165429 | N145: 0.516375328 | O145: 0.6807352248 | P145: -1.984303783 | Q145: =+Spectre!C144*N145/L145 -> 1.859757715 | R145: 1.901732552
A146: 3944 | B146: 0.3944 | C146: 6.428744821 | D146: 1.032529912 | E146: 0.3759976098 | F146: 0.9991069099 | G146: 0.0009700934936 | H146: 0.2174809345 | I146: 0.5944486378 | J146: 0.334609483 | K146: 0.5783896926 | L146: 0.5347298254 | M146: 0.6948525601 | N146: 0.5166388972 | O146: 0.6810826869 | P146: -1.981697124 | Q146: =+Spectre!C145*N146/L146 -> 1.857820257 | R146: 1.899751365
A147: 3945 | B147: 0.3945 | C147: 6.425486048 | D147: 1.032509373 | E147: 0.3756090432 | F147: 0.9991055699 | G147: 0.0009715497258 | H147: 0.2174092705 | I147: 0.5939898634 | J147: 0.3348923211 | K147: 0.578634141 | L147: 0.5349882263 | M147: 0.6951883382 | N147: 0.5169022859 | O147: 0.681429911 | P147: -1.979093511 | Q147: =+Spectre!C146*N147/L147 -> 1.85722546 | R147: 1.899143143
A148: 3946 | B148: 0.3946 | C148: 6.422229752 | D148: 1.03248885 | E148: 0.3752209805 | F148: 0.9991042278 | G148: 0.0009730081439 | H148: 0.2173376483 | I148: 0.5935316369 | J148: 0.33517506 | K148: 0.5788784006 | L148: 0.5352464433 | M148: 0.6955238773 | N148: 0.5171654939 | O148: 0.6817768969 | P148: -1.976492939 | Q148: =+Spectre!C147*N148/L148 -> 1.848530821 | R148: 1.890252266
A149: 3947 | B149: 0.3947 | C149: 6.418975931 | D149: 1.032468344 | E149: 0.374833421 | F149: 0.9991028838 | G149: 0.0009744687513 | H149: 0.2172660678 | I149: 0.5930739576 | J149: 0.3354576996 | K149: 0.5791224714 | L149: 0.5355044763 | M149: 0.6958591773 | N149: 0.5174285215 | O149: 0.682123645 | P149: -1.973895402 | Q149: =+Spectre!C148*N149/L149 -> 1.835055548 | R149: 1.876472855
A150: 3948 | B150: 0.3948 | C150: 6.415724582 | D150: 1.032447856 | E150: 0.374446364 | F150: 0.9991015377 | G150: 0.0009759315512 | H150: 0.217194529 | I150: 0.5926168246 | J150: 0.3357402397 | K150: 0.5793663536 | L150: 0.5357623256 | M150: 0.6961942385 | N150: 0.5176913687 | O150: 0.6824701552 | P150: -1.971300898 | Q150: =+Spectre!C149*N150/L150 -> 1.824063237 | R150: 1.865232447
A151: 3949 | B151: 0.3949 | C151: 6.412475702 | D151: 1.032427384 | E151: 0.3740598086 | F151: 0.9991001896 | G151: 0.000977396547 | H151: 0.2171230319 | I151: 0.5921602371 | J151: 0.3360226802 | K151: 0.5796100473 | L151: 0.536019991 | M151: 0.6965290608 | N151: 0.5179540354 | O151: 0.6828164276 | P151: -1.968709421 | Q151: =+Spectre!C150*N151/L151 -> 1.821671233 | R151: 1.862786455
A152: 3950 | B152: 0.395 | C152: 6.40922929 | D152: 1.032406929 | E152: 0.3736737541 | F152: 0.9990988395 | G152: 0.000978863742 | H152: 0.2170515764 | I152: 0.5917041942 | J152: 0.3363050209 | K152: 0.5798535526 | L152: 0.5362774728 | M152: 0.6968636445 | N152: 0.5182165219 | O152: 0.6831624623 | P152: -1.966120967 | Q152: =+Spectre!C151*N152/L152 -> 1.819737441 | R152: 1.860809018
A153: 3951 | B153: 0.3951 | C153: 6.405985343 | D153: 1.03238649 | E153: 0.3732881997 | F153: 0.9990974873 | G153: 0.0009803331394 | H153: 0.2169801625 | I153: 0.5912486953 | J153: 0.3365872618 | K153: 0.5800968696 | L153: 0.536534771 | M153: 0.6971979896 | N153: 0.5184788281 | O153: 0.6835082594 | P153: -1.963535532 | Q153: =+Spectre!C152*N153/L153 -> 1.811768113 | R153: 1.852659821
A154: 3952 | B154: 0.3952 | C154: 6.402743857 | D154: 1.032366069 | E154: 0.3729031445 | F154: 0.9990961331 | G154: 0.0009818047425 | H154: 0.2169087901 | I154: 0.5907937394 | J154: 0.3368694026 | K154: 0.5803399985 | L154: 0.5367918856 | M154: 0.6975320962 | N154: 0.5187409541 | O154: 0.6838538189 | P154: -1.960953112 | Q154: =+Spectre!C153*N154/L154 -> 1.801451092 | R154: 1.842109944
A155: 3953 | B155: 0.3953 | C155: 6.399504832 | D155: 1.032345664 | E155: 0.3725185879 | F155: 0.9990947769 | G155: 0.0009832785547 | H155: 0.2168374593 | I155: 0.5903393257 | J155: 0.3371514432 | K155: 0.5805829393 | L155: 0.5370488168 | M155: 0.6978659644 | N155: 0.5190029 | O155: 0.6841991409 | P155: -1.958373701 | Q155: =+Spectre!C154*N155/L155 -> 1.791150901 | R155: 1.831577278
A156: 3954 | B156: 0.3954 | C156: 6.396268264 | D156: 1.032325276 | E156: 0.372134529 | F156: 0.9990934187 | G156: 0.0009847545793 | H156: 0.21676617 | I156: 0.5898854535 | J156: 0.3374333834 | K156: 0.5808256921 | L156: 0.5373055646 | M156: 0.6981995944 | N156: 0.5192646658 | O156: 0.6845442256 | P156: -1.955797296 | Q156: =+Spectre!C155*N156/L156 -> 1.781122845 | R156: 1.821322888
A157: 3955 | B157: 0.3955 | C157: 6.39303415 | D157: 1.032304905 | E157: 0.371750967 | F157: 0.9990920584 | G157: 0.0009862328195 | H157: 0.2166949221 | I157: 0.5894321219 | J157: 0.3377152232 | K157: 0.5810682571 | L157: 0.5375621291 | M157: 0.6985329861 | N157: 0.5195262516 | O157: 0.6848890729 | P157: -1.953223893 | Q157: =+Spectre!C156*N157/L157 -> 1.771391268 | R157: 1.811371669
A158: 3956 | B158: 0.3956 | C158: 6.389802489 | D158: 1.032284551 | E158: 0.3713679013 | F158: 0.9990906961 | G158: 0.0009877132788 | H158: 0.2166237156 | I158: 0.5889793302 | J158: 0.3379969623 | K158: 0.5813106344 | L158: 0.5378185104 | M158: 0.6988661397 | N158: 0.5197876574 | O158: 0.685233683 | P158: -1.950653486 | Q158: =+Spectre!C157*N158/L158 -> 1.779496149 | R158: 1.819659477
A159: 3957 | B159: 0.3957 | C159: 6.386573277 | D159: 1.032264213 | E159: 0.3709853309 | F159: 0.9990893318 | G159: 0.0009891959605 | H159: 0.2165525506 | I159: 0.5885270775 | J159: 0.3382786007 | K159: 0.581552824 | L159: 0.5380747085 | M159: 0.6991990554 | N159: 0.5200488833 | O159: 0.685578056 | P159: -1.948086072 | Q159: =+Spectre!C158*N159/L159 -> 1.79235901 | R159: 1.832812653
A160: 3958 | B160: 0.3958 | C160: 6.383346513 | D160: 1.032243892 | E160: 0.3706032552 | F160: 0.9990879654 | G160: 0.0009906808678 | H160: 0.2164814269 | I160: 0.5880753629 | J160: 0.3385601381 | K160: 0.5817948262 | L160: 0.5383307236 | M160: 0.6995317331 | N160: 0.5203099294 | O160: 0.6859221919 | P160: -1.945521646 | Q160: =+Spectre!C159*N160/L160 -> 1.802716446 | R160: 1.843403858
A161: 3959 | B161: 0.3959 | C161: 6.380122193 | D161: 1.032223588 | E161: 0.3702216734 | F161: 0.9990865969 | G161: 0.0009921680042 | H161: 0.2164103445 | I161: 0.5876241858 | J161: 0.3388415745 | K161: 0.582036641 | L161: 0.5385865557 | M161: 0.6998641731 | N161: 0.5205707958 | O161: 0.6862660908 | P161: -1.942960204 | Q161: =+Spectre!C160*N161/L161 -> 1.809827285 | R161: 1.850675188
A162: 3960 | B162: 0.396 | C162: 6.376900316 | D162: 1.0322033 | E162: 0.3698405846 | F162: 0.9990852264 | G162: 0.000993657373 | H162: 0.2163393034 | I162: 0.5871735454 | J162: 0.3391229097 | K162: 0.5822782685 | L162: 0.5388422048 | M162: 0.7001963754 | N162: 0.5208314824 | O162: 0.6866097527 | P162: -1.940401743 | Q162: =+Spectre!C161*N162/L162 -> 1.81642916 | R162: 1.857426069
A163: 3961 | B163: 0.3961 | C163: 6.373680879 | D163: 1.03218303 | E163: 0.3694599882 | F163: 0.9990838538 | G163: 0.0009951489774 | H163: 0.2162683035 | I163: 0.5867234407 | J163: 0.3394041436 | K163: 0.5825197088 | L163: 0.5390976711 | M163: 0.7005283401 | N163: 0.5210919894 | O163: 0.6869531779 | P163: -1.937846256 | Q163: =+Spectre!C162*N163/L163 -> 1.81697946 | R163: 1.857988789
A164: 3962 | B164: 0.3962 | C164: 6.370463879 | D164: 1.032162775 | E164: 0.3690798834 | F164: 0.9990824792 | G164: 0.000996642821 | H164: 0.2161973449 | I164: 0.5862738711 | J164: 0.3396852759 | K164: 0.582760962 | L164: 0.5393529547 | M164: 0.7008600673 | N164: 0.5213523168 | O164: 0.6872963663 | P164: -1.93529374 | Q164: =+Spectre!C163*N164/L164 -> 1.817046301 | R164: 1.858057138
A165: 3963 | B165: 0.3963 | C165: 6.367249315 | D165: 1.032142538 | E165: 0.3687002693 | F165: 0.9990811025 | G165: 0.000998138907 | H165: 0.2161264274 | I165: 0.5858248356 | J165: 0.3399663067 | K165: 0.5830020284 | L165: 0.5396080556 | M165: 0.7011915571 | N165: 0.5216124646 | O165: 0.687639318 | P165: -1.932744192 | Q165: =+Spectre!C164*N165/L165 -> 1.807951294 | R165: 1.848756857
A166: 3964 | B166: 0.3964 | C166: 6.364037182 | D166: 1.032122316 | E166: 0.3683211453 | F166: 0.9990797238 | G166: 0.0009996372388 | H166: 0.2160555511 | I166: 0.5853763337 | J166: 0.3402472357 | K166: 0.5832429079 | L166: 0.5398629738 | M166: 0.7015228097 | N166: 0.5218724331 | O166: 0.6879820332 | P166: -1.930197606 | Q166: =+Spectre!C165*N166/L166 -> 1.790643061 | R166: 1.831057976
A167: 3965 | B167: 0.3965 | C167: 6.36082748 | D167: 1.032102112 | E167: 0.3679425106 | F167: 0.999078343 | G167: 0.00100113782 | H167: 0.2159847159 | I167: 0.5849283643 | J167: 0.3405280628 | K167: 0.5834836006 | L167: 0.5401177096 | M167: 0.701853825 | N167: 0.5221322221 | O167: 0.6883245118 | P167: -1.927653978 | Q167: =+Spectre!C166*N167/L167 -> 1.778780834 | R167: 1.818928018
A168: 3966 | B168: =+A168/10000 -> 0.3966 | C168: =+(1/B168)^2 -> 6.357620205 | D168: =0.23465+1.076*100/(146-C168)+0.93161/(41-C168) -> 1.032081924 | E168: =9.4977*0.001*C168^2*D168*EXP(-h/7.996/1000) -> 0.3675643644 | F168: =+EXP(-0.0168*EXP(-15*ABS(B168-0.59))) -> 0.9990769601 | G168: =-2.5*LOG(F168) -> 0.001002640653 | H168: =2.5*LOG(EXP(AOD*(B168/0.55)^(-1.3))) -> 0.2159139218 | I168: =+E168+G168+H168 -> 0.5844809268 | J168: =10^(-0.4*I168*ma) -> 0.3408087879 | K168: =10^(-0.4*I168) -> 0.5837241068 | L168: =10^(-0.4*I168*ma_ref) -> 0.5403722629 | M168: =+L168/M$1 -> 0.7021846033 | N168: =10^(-0.4*I168*ma_target) -> 0.5223918317 | O168: =+N168/O$1 -> 0.6886667541 | P168: =(O168/M168-1)*100 -> -1.925113304 | Q168: =+Spectre!C167*N168/L168 -> 1.79207974 | R168: 1.832527081
A169: 3967 | B169: 0.3967 | C169: 6.354415356 | D169: 1.032061753 | E169: 0.3671867059 | F169: 0.9990755751 | G169: 0.001004145743 | H169: 0.2158431687 | I169: 0.5840340203 | J169: 0.3410894108 | K169: 0.5839644265 | L169: 0.5406266338 | M169: 0.7025151446 | N169: 0.5226512621 | O169: 0.68900876 | P169: -1.92257558 | Q169: =+Spectre!C168*N169/L169 -> 1.808095306 | R169: 1.848904119
A170: 3968 | B170: 0.3968 | C170: 6.351212929 | D170: 1.032041598 | E170: 0.3668095344 | F170: 0.9990741881 | G170: 0.001005653092 | H170: 0.2157724566 | I170: 0.5835876441 | J170: 0.3413699313 | K170: 0.5842045598 | L170: 0.5408808225 | M170: 0.702845449 | N170: 0.5229105133 | O170: 0.6893505296 | P170: -1.920040802 | Q170: =+Spectre!C169*N170/L170 -> 1.808779397 | R170: 1.849603649
A171: 3969 | B171: 0.3969 | C171: 6.348012923 | D171: 1.032021459 | E171: 0.3664328492 | F171: 0.999072799 | G171: 0.001007162703 | H171: 0.2157017855 | I171: 0.5831417974 | J171: 0.3416503495 | K171: 0.5844445068 | L171: 0.5411348289 | M171: 0.7031755167 | N171: 0.5231695854 | O171: 0.6896920631 | P171: -1.917508964 | Q171: =+Spectre!C170*N171/L171 -> 1.799775946 | R171: 1.840396991
A172: 3970 | B172: 0.397 | C172: 6.344815334 | D172: 1.032001337 | E172: 0.3660566495 | F172: 0.9990714078 | G172: 0.001008674581 | H172: 0.2156311553 | I172: 0.5826964794 | J172: 0.341930665 | K172: 0.5846842677 | L172: 0.5413886532 | M172: 0.7035053477 | N172: 0.5234284783 | O172: 0.6900333605 | P172: -1.914980064 | Q172: =+Spectre!C171*N172/L172 -> 1.790948482 | R172: 1.83137029
A173: 3971 | B173: 0.3971 | C173: 6.341620161 | D173: 1.031981232 | E173: 0.3656809344 | F173: 0.9990700145 | G173: 0.001010188728 | H173: 0.2155605661 | I173: 0.5822516893 | J173: 0.3422108779 | K173: 0.5849238425 | L173: 0.5416422954 | M173: 0.7038349421 | N173: 0.5236871922 | O173: 0.6903744219 | P173: -1.912454097 | Q173: =+Spectre!C172*N173/L173 -> 1.781297725 | R173: 1.821501714
A174: 3972 | B174: 0.3972 | C174: 6.338427401 | D174: 1.031961143 | E174: 0.3653057034 | F174: 0.9990686191 | G174: 0.001011705148 | H174: 0.2154900177 | I174: 0.5818074263 | J174: 0.3424909878 | K174: 0.5851632314 | L174: 0.5418957557 | M174: 0.7041643 | N174: 0.5239457272 | O174: 0.6907152474 | P174: -1.909931058 | Q174: =+Spectre!C173*N174/L174 -> 1.771608298 | R174: 1.811593597
A175: 3973 | B175: 0.3973 | C175: 6.335237051 | D175: 1.03194107 | E175: 0.3649309556 | F175: 0.9990672217 | G175: 0.001013223845 | H175: 0.2154195102 | I175: 0.5813636896 | J175: 0.3427709948 | K175: 0.5854024345 | L175: 0.5421490341 | M175: 0.7044934216 | N175: 0.5242040833 | O175: 0.691055837 | P175: -1.907410944 | Q175: =+Spectre!C174*N175/L175 -> 1.765021424 | R175: 1.804858057
A176: 3974 | B176: 0.3974 | C176: 6.332049109 | D176: 1.031921014 | E176: 0.3645566902 | F176: 0.9990658221 | G176: 0.001014744821 | H176: 0.2153490434 | I176: 0.5809204785 | J176: 0.3430508987 | K176: 0.5856414518 | L176: 0.5424021307 | M176: 0.704822307 | N176: 0.5244622606 | O176: 0.6913961909 | P176: -1.90489375 | Q176: =+Spectre!C175*N176/L176 -> 1.759305388 | R176: 1.79901301
A177: 3975 | B177: 0.3975 | C177: 6.328863573 | D177: 1.031900974 | E177: 0.3641829066 | F177: 0.9990644204 | G177: 0.00101626808 | H177: 0.2152786175 | I177: 0.5804777922 | J177: 0.3433306993 | K177: 0.5858802836 | L177: 0.5426550455 | M177: 0.7051509562 | N177: 0.5247202591 | O177: 0.6917363091 | P177: -1.902379471 | Q177: =+Spectre!C176*N177/L177 -> 1.763536835 | R177: 1.80333996
A178: 3976 | B178: 0.3976 | C178: 6.325680441 | D178: 1.031880951 | E178: 0.363809604 | F178: 0.9990630167 | G178: 0.001017793626 | H178: 0.2152082323 | I178: 0.5800356299 | J178: 0.3436103965 | K178: 0.5861189299 | L178: 0.5429077787 | M178: 0.7054793693 | N178: 0.5249780789 | O178: 0.6920761918 | P178: -1.899868105 | Q178: =+Spectre!C177*N178/L178 -> 1.788200264 | R178: 1.828560045
A179: 3977 | B179: 0.3977 | C179: 6.322499709 | D179: 1.031860944 | E179: 0.3634367816 | F179: 0.9990616108 | G179: 0.001019321462 | H179: 0.2151378877 | I179: 0.5795939908 | J179: 0.3438899902 | K179: 0.5863573909 | L179: 0.5431603303 | M179: 0.7058075465 | N179: 0.52523572 | O179: 0.692415839 | P179: -1.897359646 | Q179: =+Spectre!C178*N179/L179 -> 1.812079409 | R179: 1.852978144
A180: 3978 | B180: 0.3978 | C180: 6.319321376 | D180: 1.031840953 | E180: 0.3630644387 | F180: 0.9990602028 | G180: 0.001020851592 | H180: 0.2150675839 | I180: 0.5791528741 | J180: 0.3441694802 | K180: 0.5865956666 | L180: 0.5434127005 | M180: 0.7061354879 | N180: 0.5254931826 | O180: 0.6927552507 | P180: -1.894854091 | Q180: =+Spectre!C179*N180/L180 -> 1.828059167 | R180: 1.869318565
A181: 3979 | B181: 0.3979 | C181: 6.316145438 | D181: 1.031820979 | E181: 0.3626925745 | F181: 0.9990587927 | G181: 0.001022384018 | H181: 0.2149973207 | I181: 0.5787122792 | J181: 0.3444488665 | K181: 0.5868337571 | L181: 0.5436648892 | M181: 0.7064631935 | N181: 0.5257504667 | O181: 0.6930944272 | P181: -1.892351435 | Q181: =+Spectre!C180*N181/L181 -> 1.841927723 | R181: 1.883500136
A182: 3980 | B182: 0.398 | C182: 6.312971895 | D182: 1.031801021 | E182: 0.3623211883 | F182: 0.9990573805 | G182: 0.001023918745 | H182: 0.2149270981 | I182: 0.5782722051 | J182: 0.3447281488 | K182: 0.5870716627 | L182: 0.5439168966 | M182: 0.7067906635 | N182: 0.5260075724 | O182: 0.6934333684 | P182: -1.889851674 | Q182: =+Spectre!C181*N182/L182 -> 1.855978828 | R182: 1.897868375
A183: 3981 | B183: 0.3981 | C183: 6.309800742 | D183: 1.031781079 | E183: 0.3619502794 | F183: 0.9990559662 | G183: 0.001025455776 | H183: 0.214856916 | I183: 0.5778326512 | J183: 0.3450073271 | K183: 0.5873093833 | L183: 0.5441687227 | M183: 0.707117898 | N183: 0.5262644996 | O183: 0.6937720744 | P183: -1.887354804 | Q183: =+Spectre!C182*N183/L183 -> 1.870223889 | R183: 1.912434948
A184: 3982 | B184: 0.3982 | C184: 6.306631979 | D184: 1.031761153 | E184: 0.361579847 | F184: 0.9990545498 | G184: 0.001026995114 | H184: 0.2147867745 | I184: 0.5773936167 | J184: 0.3452864012 | K184: 0.5875469191 | L184: 0.5444203677 | M184: 0.7074448971 | N184: 0.5265212486 | O184: 0.6941105454 | P184: -1.884860821 | Q184: =+Spectre!C183*N184/L184 -> 1.884947107 | R184: 1.927490469
A185: 3983 | B185: 0.3983 | C185: 6.303465601 | D185: 1.031741244 | E185: 0.3612098905 | F185: 0.9990531312 | G185: 0.001028536762 | H185: 0.2147166735 | I185: 0.5769551007 | J185: 0.345565371 | K185: 0.5877842703 | L185: 0.5446718316 | M185: 0.7077716609 | N185: 0.5267778193 | O185: 0.6944487814 | P185: -1.88236972 | Q185: =+Spectre!C184*N185/L185 -> 1.903520004 | R185: 1.946482558
A186: 3984 | B186: 0.3984 | C186: 6.300301608 | D186: 1.031721351 | E186: 0.3608404089 | F186: 0.9990517105 | G186: 0.001030080725 | H186: 0.214646613 | I186: 0.5765171026 | J186: 0.3458442364 | K186: 0.5880214368 | L186: 0.5449231145 | M186: 0.7080981894 | N186: 0.5270342119 | O186: 0.6947867826 | P186: -1.879881498 | Q186: =+Spectre!C185*N186/L186 -> 1.922775304 | R186: 1.966172451
A187: 3985 | B187: 0.3985 | C187: 6.297139996 | D187: 1.031701474 | E187: 0.3604714017 | F187: 0.9990502877 | G187: 0.001031627006 | H187: 0.2145765929 | I187: 0.5760796216 | J187: 0.3461229972 | K187: 0.588258419 | L187: 0.5451742164 | M187: 0.7084244829 | N187: 0.5272904264 | O187: 0.6951245489 | P187: -1.877396151 | Q187: =+Spectre!C186*N187/L187 -> 1.939171717 | R187: 1.982938932
A188: 3986 | B188: 0.3986 | C188: 6.293980764 | D188: 1.031681613 | E188: 0.360102868 | F188: 0.9990488627 | G188: 0.001033175607 | H188: 0.2145066132 | I188: 0.5756426568 | J188: 0.3464016533 | K188: 0.5884952167 | L188: 0.5454251375 | M188: 0.7087505413 | N188: 0.5275464628 | O188: 0.6954620805 | P188: -1.874913674 | Q188: =+Spectre!C187*N188/L188 -> 1.952689888 | R188: 1.996762209
A189: 3987 | B189: 0.3987 | C189: 6.290823909 | D189: 1.031661769 | E189: 0.3597348072 | F189: 0.9990474356 | G189: 0.001034726534 | H189: 0.2144366739 | I189: 0.5752062077 | J189: 0.3466802045 | K189: 0.5887318303 | L189: 0.5456758779 | M189: 0.7090763649 | N189: 0.5278023212 | O189: 0.6957993775 | P189: -1.872434063 | Q189: =+Spectre!C188*N189/L189 -> 1.964955293 | R189: 2.009304444
A190: 3988 | B190: 0.3988 | C190: 6.287669428 | D190: 1.03164194 | E190: 0.3593672186 | F190: 0.9990460064 | G190: 0.001036279788 | H190: 0.2143667749 | I190: 0.5747702732 | J190: 0.3469586509 | K190: 0.5889682597 | L190: 0.5459264376 | M190: 0.7094019537 | N190: 0.5280580017 | O190: 0.69613644 | P190: -1.869957314 | Q190: =+Spectre!C189*N190/L190 -> 1.968496546 | R190: 2.012925624
A191: 3989 | B191: 0.3989 | C191: 6.284517319 | D191: 1.031622128 | E191: 0.3590001013 | F191: 0.999044575 | G191: 0.001037835374 | H191: 0.2142969162 | I191: 0.5743348528 | J191: 0.3472369921 | K191: 0.5892045051 | L191: 0.5461768167 | M191: 0.7097273078 | N191: 0.5283135044 | O191: 0.696473268 | P191: -1.867483423 | Q191: =+Spectre!C190*N191/L191 -> 1.97172371 | R191: 2.016225625
A192: 3990 | B192: 0.399 | C192: 6.281367579 | D192: 1.031602332 | E192: 0.3586334547 | F192: 0.9990431415 | G192: 0.001039393295 | H192: 0.2142270978 | I192: 0.5738999457 | J192: 0.3475152282 | K192: 0.5894405667 | L192: 0.5464270153 | M192: 0.7100524274 | N192: 0.5285688293 | O192: 0.6968098617 | P192: -1.865012386 | Q192: =+Spectre!C191*N192/L192 -> 1.973254944 | R192: 2.017791419
A193: 3991 | B193: 0.3991 | C193: 6.278220207 | D193: 1.031582552 | E193: 0.358267278 | F193: 0.9990417058 | G193: 0.001040953555 | H193: 0.2141573196 | I193: 0.5734655511 | J193: 0.3477933589 | K193: 0.5896764445 | L193: 0.5466770334 | M193: 0.7103773125 | N193: 0.5288239766 | O193: 0.6971462211 | P193: -1.862544198 | Q193: =+Spectre!C192*N193/L193 -> 1.973804826 | R193: 2.018353712
A194: 3992 | B194: 0.3992 | C194: 6.275075201 | D194: 1.031562788 | E194: 0.3579015705 | F194: 0.999040268 | G194: 0.001042516157 | H194: 0.2140875816 | I194: 0.5730316682 | J194: 0.3480713842 | K194: 0.5899121386 | L194: 0.5469268712 | M194: 0.7107019632 | N194: 0.5290789461 | O194: 0.6974823463 | P194: -1.860078857 | Q194: =+Spectre!C193*N194/L194 -> 1.975108804 | R194: 2.01968712
A195: 3993 | B195: 0.3993 | C195: 6.271932556 | D195: 1.03154304 | E195: 0.3575363315 | F195: 0.999038828 | G195: 0.001044081105 | H195: 0.2140178838 | I195: 0.5725982963 | J195: 0.3483493038 | K195: 0.5901476492 | L195: 0.5471765288 | M195: 0.7110263798 | N195: 0.5293337381 | O195: 0.6978182374 | P195: -1.857616357 | Q195: =+Spectre!C194*N195/L195 -> 1.979114149 | R195: =+Q195/R$1 -> 2.023782866
A196: 3994 | B196: 0.3994 | C196: 6.268792272 | D196: 1.031523308 | E196: 0.3571715602 | F196: 0.9990373858 | G196: 0.001045648402 | H196: 0.2139482261 | I196: 0.5721654347 | J196: 0.3486271178 | K196: 0.5903829763 | L196: 0.5474260061 | M196: 0.7113505621 | N196: 0.5295883526 | O196: 0.6981538946 | P196: -1.855156695 | Q196: =+Spectre!C195*N196/L196 -> 1.983023799 | R196: 2.027780757
A197: 3995 | B197: 0.3995 | C197: 6.265654346 | D197: 1.031503593 | E197: 0.356807256 | F197: 0.9990359415 | G197: 0.001047218051 | H197: 0.2138786085 | I197: 0.5717330825 | J197: 0.348904826 | K197: 0.5906181202 | L197: 0.5476753034 | M197: 0.7116745105 | N197: 0.5298427897 | O197: 0.6984893178 | P197: -1.852699866 | Q197: =+Spectre!C196*N197/L197 -> 1.990577565 | R197: 2.035505013
A198: 3996 | B198: 0.3996 | C198: 6.262518775 | D198: 1.031483893 | E198: 0.3564434181 | F198: 0.9990344951 | G198: 0.001048790057 | H198: 0.213809031 | I198: 0.5713012391 | J198: 0.3491824282 | K198: 0.5908530808 | L198: 0.5479244207 | M198: 0.7119982249 | N198: 0.5300970494 | O198: 0.6988245072 | P198: -1.850245867 | Q198: =+Spectre!C197*N198/L198 -> 1.999480181 | R198: 2.044608561
A199: 3997 | B199: 0.3997 | C199: 6.259385557 | D199: 1.031464209 | E199: 0.3560800458 | F199: 0.9990330464 | G199: 0.001050364423 | H199: 0.2137394935 | I199: 0.5708699037 | J199: 0.3494599243 | K199: 0.5910878583 | L199: 0.548173358 | M199: 0.7123217055 | N199: 0.5303511318 | O199: 0.6991594628 | P199: -1.847794693 | Q199: =+Spectre!C198*N199/L199 -> 2.011322099 | R199: 2.056717752
A200: 3998 | B200: 0.3998 | C200: 6.256254691 | D200: 1.031444541 | E200: 0.3557171384 | F200: 0.9990315956 | G200: 0.001051941151 | H200: 0.213669996 | I200: 0.5704390756 | J200: 0.3497373143 | K200: 0.5913224529 | L200: 0.5484221154 | M200: 0.7126449524 | N200: 0.530605037 | O200: 0.6994941849 | P200: -1.845346341 | Q200: =+Spectre!C199*N200/L200 -> 2.030534547 | R200: 2.076363826
... 3552 more rows

Sheet Spectre
A1: 3801.7675 | B1: 2.742046833 | C1: =+B1/F$1 -> 1.673033424 | D1: =+B1/Spectre!B$2701 -> 2.618019502 | F1: =+VLOOKUP('RI1'!F10,Spectre!A1:D3444,2,1) -> 1.638967156
A2: 3802.7675 | B2: 2.799572706 | C2: =+B2/F$1 -> 1.70813228 | D2: =+B2/Spectre!B$2701 -> 2.672943385
A3: 3803.7675 | B3: 2.847818613 | C3: 1.737569055 | D3: =+B3/Spectre!B$2701 -> 2.719007049
A4: 3804.7675 | B4: 2.875621557 | C4: 1.754532753 | D4: =+B4/Spectre!B$2701 -> 2.74555242
A5: 3805.7675 | B5: 2.902960777 | C5: 1.771213515 | D5: =+B5/Spectre!B$2701 -> 2.771655042
A6: 3806.7675 | B6: 2.924747229 | C6: 1.784506308 | D6: =+B6/Spectre!B$2701 -> 2.792456056
A7: 3807.7675 | B7: 2.944653511 | C7: 1.796651934 | D7: =+B7/Spectre!B$2701 -> 2.811461944
A8: 3808.7675 | B8: 2.964357853 | C8: 1.808674348 | D8: =+B8/Spectre!B$2701 -> 2.830275026
A9: 3809.7675 | B9: 2.983487606 | C9: 1.820346182 | D9: =+B9/Spectre!B$2701 -> 2.848539508
A10: 3810.7675 | B10: 3.001752853 | C10: 1.831490547 | D10: =+B10/Spectre!B$2701 -> 2.865978588
A11: 3811.7675 | B11: 3.009963512 | C11: 1.836500201 | D11: =+B11/Spectre!B$2701 -> 2.873817866
A12: 3812.7675 | B12: 3.018353939 | C12: 1.841619539 | D12: =+B12/Spectre!B$2701 -> 2.881828779
A13: 3813.7675 | B13: 2.985018969 | C13: 1.821280528 | D13: =+B13/Spectre!B$2701 -> 2.850001605
A14: 3814.7675 | B14: 2.910619259 | C14: 1.775886263 | D14: =+B14/Spectre!B$2701 -> 2.778967118
A15: 3815.7675 | B15: 2.850900412 | C15: 1.739449385 | D15: =+B15/Spectre!B$2701 -> 2.721949453
A16: 3816.7675 | B16: 2.856690407 | C16: 1.742982094 | D16: =+B16/Spectre!B$2701 -> 2.727477557
A17: 3817.7675 | B17: 2.868618488 | C17: 1.750259898 | D17: =+B17/Spectre!B$2701 -> 2.738866112
A18: 3818.7675 | B18: 2.876782656 | C18: 1.755241186 | D18: =+B18/Spectre!B$2701 -> 2.746661
A19: 3819.7675 | B19: 2.882682562 | C19: 1.758840957 | D19: =+B19/Spectre!B$2701 -> 2.752294044
A20: 3820.7675 | B20: 2.881219387 | C20: 1.757948215 | D20: =+B20/Spectre!B$2701 -> 2.750897051
A21: 3821.7675 | B21: 2.859800577 | C21: 1.744879735 | D21: =+B21/Spectre!B$2701 -> 2.730447049
A22: 3822.7675 | B22: 2.838613987 | C22: 1.731952941 | D22: =+B22/Spectre!B$2701 -> 2.710218764
A23: 3823.7675 | B23: 2.861122847 | C23: 1.745686505 | D23: =+B23/Spectre!B$2701 -> 2.73170951
A24: 3824.7675 | B24: 2.900101185 | C24: 1.769468762 | D24: =+B24/Spectre!B$2701 -> 2.768924793
A25: 3825.7675 | B25: 2.933135271 | C25: 1.789624191 | D25: =+B25/Spectre!B$2701 -> 2.800464693
A26: 3826.7675 | B26: 2.956750393 | C26: 1.80403273 | D26: =+B26/Spectre!B$2701 -> 2.823011664
A27: 3827.7675 | B27: 2.973662376 | C27: 1.814351413 | D27: =+B27/Spectre!B$2701 -> 2.83915869
A28: 3828.7675 | B28: 2.909851789 | C28: 1.775417999 | D28: =+B28/Spectre!B$2701 -> 2.778234362
A29: 3829.7675 | B29: 2.827122688 | C29: 1.724941636 | D29: =+B29/Spectre!B$2701 -> 2.699247235
A30: 3830.7675 | B30: 2.794378757 | C30: 1.704963243 | D30: =+B30/Spectre!B$2701 -> 2.667984367
A31: 3831.7675 | B31: 2.81274724 | C31: 1.716170595 | D31: =+B31/Spectre!B$2701 -> 2.685522013
A32: 3832.7675 | B32: 2.831992388 | C32: 1.727912836 | D32: =+B32/Spectre!B$2701 -> 2.70389667
A33: 3833.7675 | B33: 2.868074656 | C33: 1.749928084 | D33: =+B33/Spectre!B$2701 -> 2.738346877
A34: 3834.7675 | B34: 2.906439781 | C34: 1.773336195 | D34: =+B34/Spectre!B$2701 -> 2.774976685
A35: 3835.7675 | B35: 2.920882225 | C35: 1.782148113 | D35: =+B35/Spectre!B$2701 -> 2.788765873
A36: 3836.7675 | B36: 2.919938564 | C36: 1.781572347 | D36: =+B36/Spectre!B$2701 -> 2.787864895
A37: 3837.7675 | B37: 2.918723345 | C37: 1.780830893 | D37: =+B37/Spectre!B$2701 -> 2.786704642
A38: 3838.7675 | B38: 2.914106846 | C38: 1.778014181 | D38: =+B38/Spectre!B$2701 -> 2.782296955
A39: 3839.7675 | B39: 2.909291029 | C39: 1.775075857 | D39: =+B39/Spectre!B$2701 -> 2.777698966
A40: 3840.7675 | B40: 2.894497395 | C40: 1.766049663 | D40: =+B40/Spectre!B$2701 -> 2.763574472
A41: 3841.7675 | B41: 2.874359846 | C41: 1.753762932 | D41: =+B41/Spectre!B$2701 -> 2.744347778
A42: 3842.7675 | B42: 2.885207653 | C42: 1.760381617 | D42: =+B42/Spectre!B$2701 -> 2.754704921
A43: 3843.7675 | B43: 2.950598478 | C43: 1.800279198 | D43: =+B43/Spectre!B$2701 -> 2.81713801
A44: 3844.7675 | B44: 3.012872458 | C44: 1.838275066 | D44: =+B44/Spectre!B$2701 -> 2.876595234
A45: 3845.7675 | B45: 3.053892136 | C45: 1.863302827 | D45: =+B45/Spectre!B$2701 -> 2.915759524
A46: 3846.7675 | B46: 3.091202736 | C46: 1.88606753 | D46: =+B46/Spectre!B$2701 -> 2.951382504
A47: 3847.7675 | B47: 3.106776953 | C47: 1.895569988 | D47: =+B47/Spectre!B$2701 -> 2.966252273
A48: 3848.7675 | B48: 3.097936153 | C48: 1.890175859 | D48: =+B48/Spectre!B$2701 -> 2.957811358
A49: 3849.7675 | B49: 3.091005802 | C49: 1.885947372 | D49: =+B49/Spectre!B$2701 -> 2.951194478
A50: 3850.7675 | B50: 3.08742857 | C50: 1.883764759 | D50: =+B50/Spectre!B$2701 -> 2.94777905
A51: 3851.7675 | B51: 3.084114075 | C51: 1.881742451 | D51: =+B51/Spectre!B$2701 -> 2.944614475
A52: 3852.7675 | B52: 3.084508181 | C52: 1.881982911 | D52: =+B52/Spectre!B$2701 -> 2.944990755
A53: 3853.7675 | B53: 3.087070704 | C53: 1.88354641 | D53: =+B53/Spectre!B$2701 -> 2.94743737
A54: 3854.7675 | B54: 3.10494709 | C54: 1.894453515 | D54: =+B54/Spectre!B$2701 -> 2.964505178
A55: 3855.7675 | B55: 3.172673941 | C55: 1.935776399 | D55: =+B55/Spectre!B$2701 -> 3.029168631
A56: 3856.7675 | B56: 3.23988986 | C56: 1.976787544 | D56: =+B56/Spectre!B$2701 -> 3.093344263
A57: 3857.7675 | B57: 3.188624382 | C57: 1.945508407 | D57: =+B57/Spectre!B$2701 -> 3.044397607
A58: 3858.7675 | B58: 3.084541082 | C58: 1.882002986 | D58: =+B58/Spectre!B$2701 -> 2.945022168
A59: 3859.7675 | B59: 3.028563976 | C59: 1.847849095 | D59: =+B59/Spectre!B$2701 -> 2.891577
A60: 3860.7675 | B60: 3.065696239 | C60: 1.870504987 | D60: =+B60/Spectre!B$2701 -> 2.927029709
A61: 3861.7675 | B61: 3.097079039 | C61: 1.889652899 | D61: =+B61/Spectre!B$2701 -> 2.956993012
A62: 3862.7675 | B62: 3.086411238 | C62: 1.883144043 | D62: =+B62/Spectre!B$2701 -> 2.946807733
A63: 3863.7675 | B63: 3.064957619 | C63: 1.870054325 | D63: =+B63/Spectre!B$2701 -> 2.926324497
A64: 3864.7675 | B64: 3.064964294 | C64: 1.870058398 | D64: =+B64/Spectre!B$2701 -> 2.926330871
A65: 3865.7675 | B65: 3.092573404 | C65: 1.88690383 | D65: =+B65/Spectre!B$2701 -> 2.952691175
A66: 3866.7675 | B66: 3.115385532 | C66: =+B66/F$1 -> 1.90082243 | D66: =+B66/Spectre!B$2701 -> 2.974471473
A67: 3867.7675 | B67: 3.114850283 | C67: 1.900495852 | D67: =+B67/Spectre!B$2701 -> 2.973960433
A68: 3868.7675 | B68: 3.11268878 | C68: 1.899177032 | D68: =+B68/Spectre!B$2701 -> 2.971896699
A69: 3869.7675 | B69: 3.0768466 | C69: 1.877308272 | D69: =+B69/Spectre!B$2701 -> 2.93767572
A70: 3870.7675 | B70: 3.013931513 | C70: 1.838921238 | D70: =+B70/Spectre!B$2701 -> 2.877606387
A71: 3871.7675 | B71: 2.96483922 | C71: 1.808968049 | D71: =+B71/Spectre!B$2701 -> 2.83073462
A72: 3872.7675 | B72: 2.965315342 | C72: 1.809258551 | D72: =+B72/Spectre!B$2701 -> 2.831189206
A73: 3873.7675 | B73: 2.966477156 | C73: 1.80996742 | D73: =+B73/Spectre!B$2701 -> 2.832298469
A74: 3874.7675 | B74: 2.967449427 | C74: 1.810560642 | D74: =+B74/Spectre!B$2701 -> 2.833226762
A75: 3875.7675 | B75: 2.96805954 | C75: 1.810932896 | D75: =+B75/Spectre!B$2701 -> 2.833809279
A76: 3876.7675 | B76: 2.963629723 | C76: 1.808230086 | D76: =+B76/Spectre!B$2701 -> 2.82957983
A77: 3877.7675 | B77: 2.946661711 | C77: 1.797877217 | D77: =+B77/Spectre!B$2701 -> 2.813379309
A78: 3878.7675 | B78: 2.931756973 | C78: 1.788783236 | D78: =+B78/Spectre!B$2701 -> 2.799148738
A79: 3879.7675 | B79: 2.959083319 | C79: 1.805456142 | D79: =+B79/Spectre!B$2701 -> 2.825239067
A80: 3880.7675 | B80: 2.998040438 | C80: 1.829225452 | D80: =+B80/Spectre!B$2701 -> 2.862434091
A81: 3881.7675 | B81: 3.009869337 | C81: 1.836442741 | D81: =+B81/Spectre!B$2701 -> 2.87372795
A82: 3882.7675 | B82: 2.979650736 | C82: 1.818005153 | D82: =+B82/Spectre!B$2701 -> 2.844876186
A83: 3883.7675 | B83: 2.954681396 | C83: 1.802770351 | D83: =+B83/Spectre!B$2701 -> 2.821036251
A84: 3884.7675 | B84: 2.957102299 | C84: 1.804247442 | D84: =+B84/Spectre!B$2701 -> 2.823347652
A85: 3885.7675 | B85: 2.961970568 | C85: 1.807217769 | D85: =+B85/Spectre!B$2701 -> 2.827995721
A86: 3886.7675 | B86: 2.985267401 | C86: 1.821432107 | D86: =+B86/Spectre!B$2701 -> 2.8502388
A87: 3887.7675 | B87: 3.025096178 | C87: 1.845733251 | D87: =+B87/Spectre!B$2701 -> 2.888266056
A88: 3888.7675 | B88: 3.04766798 | C88: 1.859505218 | D88: =+B88/Spectre!B$2701 -> 2.909816898
A89: 3889.7675 | B89: 2.974699736 | C89: 1.814984348 | D89: =+B89/Spectre!B$2701 -> 2.840149128
A90: 3890.7675 | B90: 2.89902997 | C90: 1.76881517 | D90: =+B90/Spectre!B$2701 -> 2.767902032
A91: 3891.7675 | B91: 2.911682606 | C91: 1.776535054 | D91: =+B91/Spectre!B$2701 -> 2.779982367
A92: 3892.7675 | B92: 2.972925186 | C92: 1.813901624 | D92: =+B92/Spectre!B$2701 -> 2.838454844
A93: 3893.7675 | B93: 3.009052753 | C93: 1.83594451 | D93: =+B93/Spectre!B$2701 -> 2.872948302
A94: 3894.7675 | B94: 2.967825174 | C94: 1.810789901 | D94: =+B94/Spectre!B$2701 -> 2.833585514
A95: 3895.7675 | B95: 2.929967642 | C95: 1.787691492 | D95: =+B95/Spectre!B$2701 -> 2.797440341
A96: 3896.7675 | B96: 2.934815407 | C96: 1.790649309 | D96: =+B96/Spectre!B$2701 -> 2.802068833
A97: 3897.7675 | B97: 2.951648474 | C97: 1.800919843 | D97: =+B97/Spectre!B$2701 -> 2.818140513
A98: 3898.7675 | B98: 2.974579811 | C98: 1.814911177 | D98: =+B98/Spectre!B$2701 -> 2.840034628
A99: 3899.7675 | B99: 3.009134054 | C99: 1.835994115 | D99: =+B99/Spectre!B$2701 -> 2.873025925
A100: 3900.7675 | B100: 3.04233861 | C100: 1.856253554 | D100: =+B100/Spectre!B$2701 -> 2.904728583
A101: 3901.7675 | B101: 3.054871082 | C101: 1.863900122 | D101: =+B101/Spectre!B$2701 -> 2.916694191
A102: 3902.7675 | B102: 3.065187693 | C102: 1.870194702 | D102: =+B102/Spectre!B$2701 -> 2.926544164
A103: 3903.7675 | B103: 3.077120304 | C103: 1.87747527 | D103: =+B103/Spectre!B$2701 -> 2.937937044
A104: 3904.7675 | B104: 3.091698885 | C104: 1.88637025 | D104: =+B104/Spectre!B$2701 -> 2.951856211
A105: 3905.7675 | B105: 3.10872364 | C105: 1.896757741 | D105: =+B105/Spectre!B$2701 -> 2.968110909
A106: 3906.7675 | B106: 3.156280994 | C106: 1.925774401 | D106: =+B106/Spectre!B$2701 -> 3.013517165
A107: 3907.7675 | B107: 3.206001997 | C107: 1.956111191 | D107: =+B107/Spectre!B$2701 -> 3.060989204
A108: 3908.7675 | B108: 3.219992399 | C108: 1.9646473 | D108: =+B108/Spectre!B$2701 -> 3.074346797
A109: 3909.7675 | B109: 3.212055445 | C109: 1.959804644 | D109: =+B109/Spectre!B$2701 -> 3.066768844
A110: 3910.7675 | B110: 3.208370686 | C110: 1.957556424 | D110: =+B110/Spectre!B$2701 -> 3.063250753
A111: 3911.7675 | B111: 3.221383572 | C111: 1.965496111 | D111: =+B111/Spectre!B$2701 -> 3.075675044
A112: 3912.7675 | B112: 3.234516144 | C112: 1.973508823 | D112: =+B112/Spectre!B$2701 -> 3.088213609
A113: 3913.7675 | B113: 3.230953693 | C113: 1.971335228 | D113: =+B113/Spectre!B$2701 -> 3.084812294
A114: 3914.7675 | B114: 3.22239852 | C114: 1.966115371 | D114: =+B114/Spectre!B$2701 -> 3.076644085
A115: 3915.7675 | B115: 3.214175701 | C115: 1.961098298 | D115: =+B115/Spectre!B$2701 -> 3.068793198
A116: 3916.7675 | B116: 3.207569361 | C116: 1.957067503 | D116: =+B116/Spectre!B$2701 -> 3.062485673
A117: 3917.7675 | B117: 3.198521852 | C117: 1.951547253 | D117: =+B117/Spectre!B$2701 -> 3.053847399
A118: 3918.7675 | B118: 3.244415998 | C118: 1.979549124 | D118: =+B118/Spectre!B$2701 -> 3.097665676
A119: 3919.7675 | B119: 3.29826951 | C119: 2.012407325 | D119: =+B119/Spectre!B$2701 -> 3.149083304
A120: 3920.7675 | B120: 3.31897378 | C120: 2.025039835 | D120: =+B120/Spectre!B$2701 -> 3.168851085
A121: 3921.7675 | B121: 3.293763638 | C121: 2.00965811 | D121: =+B121/Spectre!B$2701 -> 3.14478124
A122: 3922.7675 | B122: 3.272289515 | C122: 1.996555881 | D122: =+B122/Spectre!B$2701 -> 3.124278427
A123: 3923.7675 | B123: 3.270470381 | C123: 1.995445954 | D123: =+B123/Spectre!B$2701 -> 3.122541576
A124: 3924.7675 | B124: 3.267281771 | C124: 1.993500454 | D124: =+B124/Spectre!B$2701 -> 3.119497192
A125: 3925.7675 | B125: 3.2847929 | C125: 2.004184701 | D125: =+B125/Spectre!B$2701 -> 3.136216264
A126: 3926.7675 | B126: 3.315886497 | C126: 2.023156159 | D126: =+B126/Spectre!B$2701 -> 3.165903446
A127: 3927.7675 | B127: 3.340024471 | C127: 2.037883711 | D127: =+B127/Spectre!B$2701 -> 3.188949619
A128: 3928.7675 | B128: 3.315374374 | C128: 2.022843692 | D128: =+B128/Spectre!B$2701 -> 3.165414487
A129: 3929.7675 | B129: 3.290976048 | C129: 2.007957289 | D129: =+B129/Spectre!B$2701 -> 3.142119737
A130: 3930.7675 | B130: 3.275506496 | C130: =+B130/F$1 -> 1.998518691 | D130: =+B130/Spectre!B$2701 -> 3.1273499
A131: 3931.7675 | B131: 3.26363492 | C131: 1.991275363 | D131: =+B131/Spectre!B$2701 -> 3.116015294
A132: 3932.7675 | B132: 3.247829914 | C132: 1.981632092 | D132: =+B132/Spectre!B$2701 -> 3.100925175
A133: 3933.7675 | B133: 3.220249176 | C133: 1.96480397 | D133: =+B133/Spectre!B$2701 -> 3.074591959
A134: 3934.7675 | B134: 3.192447186 | C134: 1.947840854 | D134: =+B134/Spectre!B$2701 -> 3.048047499
A135: 3935.7675 | B135: 3.177039146 | C135: 1.938439788 | D135: =+B135/Spectre!B$2701 -> 3.033336391
A136: 3936.7675 | B136: 3.163341284 | C136: 1.930082169 | D136: =+B136/Spectre!B$2701 -> 3.020258106
A137: 3937.7675 | B137: 3.16574049 | C137: 1.931546021 | D137: =+B137/Spectre!B$2701 -> 3.022548792
A138: 3938.7675 | B138: 3.192992926 | C138: 1.948173832 | D138: =+B138/Spectre!B$2701 -> 3.048568555
A139: 3939.7675 | B139: 3.219042063 | C139: 1.964067462 | D139: =+B139/Spectre!B$2701 -> 3.073439446
A140: 3940.7675 | B140: 3.220793724 | C140: 1.965136221 | D140: =+B140/Spectre!B$2701 -> 3.075111877
A141: 3941.7675 | B141: 3.220697641 | C141: 1.965077597 | D141: =+B141/Spectre!B$2701 -> 3.07502014
A142: 3942.7675 | B142: 3.206323147 | C142: 1.956307138 | D142: =+B142/Spectre!B$2701 -> 3.061295828
A143: 3943.7675 | B143: 3.179187775 | C143: 1.939750752 | D143: =+B143/Spectre!B$2701 -> 3.035387833
A144: 3944.7675 | B144: 3.15489912 | C144: 1.924931264 | D144: =+B144/Spectre!B$2701 -> 3.012197795
A145: 3945.7675 | B145: 3.151528597 | C145: 1.922874772 | D145: =+B145/Spectre!B$2701 -> 3.008979726
A146: 3946.7675 | B146: 3.150435925 | C146: 1.922208088 | D146: =+B146/Spectre!B$2701 -> 3.007936477
A147: 3947.7675 | B147: 3.135603905 | C147: 1.913158475 | D147: =+B147/Spectre!B$2701 -> 2.993775334
A148: 3948.7675 | B148: 3.112663746 | C148: 1.899161758 | D148: =+B148/Spectre!B$2701 -> 2.971872797
A149: 3949.7675 | B149: 3.093936443 | C149: 1.887735475 | D149: =+B149/Spectre!B$2701 -> 2.953992561
A150: 3950.7675 | B150: 3.089797497 | C150: 1.885210137 | D150: =+B150/Spectre!B$2701 -> 2.950040826
A151: 3951.7675 | B151: 3.086436033 | C151: 1.883159172 | D151: =+B151/Spectre!B$2701 -> 2.946831407
A152: 3952.7675 | B152: 3.072838306 | C152: 1.87486265 | D152: =+B152/Spectre!B$2701 -> 2.933848728
A153: 3953.7675 | B153: 3.055259705 | C153: 1.864137236 | D153: =+B153/Spectre!B$2701 -> 2.917065236
A154: 3954.7675 | B154: 3.037710667 | C154: 1.85342986 | D154: =+B154/Spectre!B$2701 -> 2.90030997
A155: 3955.7675 | B155: 3.020624161 | C155: 1.843004693 | D155: =+B155/Spectre!B$2701 -> 2.883996315
A156: 3956.7675 | B156: 3.004041433 | C156: 1.832886902 | D156: =+B156/Spectre!B$2701 -> 2.868163652
A157: 3957.7675 | B157: 3.017707109 | C157: 1.841224882 | D157: =+B157/Spectre!B$2701 -> 2.881211207
A158: 3958.7675 | B158: 3.039440632 | C158: 1.854485381 | D158: =+B158/Spectre!B$2701 -> 2.901961686
A159: 3959.7675 | B159: 3.056924582 | C159: 1.865153044 | D159: =+B159/Spectre!B$2701 -> 2.918654808
A160: 3960.7675 | B160: 3.068902493 | C160: 1.872461251 | D160: =+B160/Spectre!B$2701 -> 2.930090938
A161: 3961.7675 | B161: 3.080016851 | C161: 1.87924257 | D161: =+B161/Spectre!B$2701 -> 2.940702576
A162: 3962.7675 | B162: 3.080869675 | C162: 1.879762912 | D162: =+B162/Spectre!B$2701 -> 2.941516824
A163: 3963.7675 | B163: 3.080902815 | C163: 1.879783132 | D163: =+B163/Spectre!B$2701 -> 2.941548466
A164: 3964.7675 | B164: 3.065402031 | C164: 1.870325478 | D164: =+B164/Spectre!B$2701 -> 2.926748808
A165: 3965.7675 | B165: 3.035976887 | C165: 1.852372011 | D165: =+B165/Spectre!B$2701 -> 2.898654612
A166: 3966.7675 | B166: 3.015786648 | C166: 1.840053131 | D166: =+B166/Spectre!B$2701 -> 2.879377611
A167: 3967.7675 | B167: 3.038255215 | C167: 1.85376211 | D167: =+B167/Spectre!B$2701 -> 2.900829887
A168: 3968.7675 | B168: 3.06532836 | C168: 1.870280529 | D168: =+B168/Spectre!B$2701 -> 2.926678469
A169: 3969.7675 | B169: 3.066408873 | C169: 1.870939793 | D169: =+B169/Spectre!B$2701 -> 2.927710108
A170: 3970.7675 | B170: 3.051066637 | C170: 1.861578876 | D170: =+B170/Spectre!B$2701 -> 2.913061828
A171: 3971.7675 | B171: 3.036023617 | C171: 1.852400522 | D171: =+B171/Spectre!B$2701 -> 2.898699228
A172: 3972.7675 | B172: 3.019585848 | C172: 1.842371176 | D172: =+B172/Spectre!B$2701 -> 2.883004967
A173: 3973.7675 | B173: 3.003083467 | C173: 1.832302408 | D173: =+B173/Spectre!B$2701 -> 2.867249016
A174: 3974.7675 | B174: 2.991841078 | C174: 1.825442972 | D174: =+B174/Spectre!B$2701 -> 2.856515139
A175: 3975.7675 | B175: 2.982075453 | C175: 1.819484571 | D175: =+B175/Spectre!B$2701 -> 2.847191229
A176: 3976.7675 | B176: 2.989171267 | C176: 1.823814013 | D176: =+B176/Spectre!B$2701 -> 2.853966087
A177: 3977.7675 | B177: 3.030897856 | C177: 1.849273089 | D177: =+B177/Spectre!B$2701 -> 2.893805314
A178: 3978.7675 | B178: 3.071293116 | C178: 1.873919867 | D178: =+B178/Spectre!B$2701 -> 2.932373429
A179: 3979.7675 | B179: 3.098298073 | C179: 1.890396681 | D179: =+B179/Spectre!B$2701 -> 2.958156907
A180: 3980.7675 | B180: 3.121723652 | C180: 1.904689572 | D180: =+B180/Spectre!B$2701 -> 2.980522908
A181: 3981.7675 | B181: 3.145457506 | C181: 1.919170554 | D181: =+B181/Spectre!B$2701 -> 3.003183241
A182: 3982.7675 | B182: 3.169518948 | C182: 1.933851411 | D182: =+B182/Spectre!B$2701 -> 3.026156343
A183: 3983.7675 | B183: 3.194389582 | C183: 1.949025988 | D183: =+B183/Spectre!B$2701 -> 3.049902037
A184: 3984.7675 | B184: 3.225782871 | C184: 1.968180301 | D184: =+B184/Spectre!B$2701 -> 3.079875356
A185: 3985.7675 | B185: 3.25833106 | C185: 1.988039265 | D185: =+B185/Spectre!B$2701 -> 3.110951337
A186: 3986.7675 | B186: 3.286033154 | C186: 2.00494143 | D186: =+B186/Spectre!B$2701 -> 3.137400418
A187: 3987.7675 | B187: 3.308856726 | C187: 2.018867012 | D187: =+B187/Spectre!B$2701 -> 3.159191643
A188: 3988.7675 | B188: 3.329556465 | C188: 2.031496758 | D188: =+B188/Spectre!B$2701 -> 3.178955098
A189: 3989.7675 | B189: 3.335472822 | C189: 2.035106566 | D189: =+B189/Spectre!B$2701 -> 3.184603849
A190: 3990.7675 | B190: 3.340856791 | C190: 2.038391543 | D190: =+B190/Spectre!B$2701 -> 3.189744291
A191: 3991.7675 | B191: 3.3433671 | C191: 2.039923184 | D191: =+B191/Spectre!B$2701 -> 3.192141055
A192: 3992.7675 | B192: 3.344214678 | C192: 2.040440325 | D192: =+B192/Spectre!B$2701 -> 3.192950296
A193: 3993.7675 | B193: 3.346339941 | C193: 2.041737034 | D193: =+B193/Spectre!B$2701 -> 3.19497943
A194: 3994.7675 | B194: 3.353041887 | C194: =+B194/F$1 -> 2.045826162 | D194: =+B194/Spectre!B$2701 -> 3.201378236
A195: 3995.7675 | B195: 3.35958147 | C195: 2.049816226 | D195: =+B195/Spectre!B$2701 -> 3.207622023
A196: 3996.7675 | B196: 3.372294426 | C196: 2.057572913 | D196: =+B196/Spectre!B$2701 -> 3.21975995
A197: 3997.7675 | B197: 3.387291908 | C197: 2.066723482 | D197: =+B197/Spectre!B$2701 -> 3.234079072
A198: 3998.7675 | B198: 3.407268047 | C198: 2.07891173 | D198: =+B198/Spectre!B$2701 -> 3.253151657
A199: 3999.7675 | B199: 3.439728975 | C199: 2.098717453 | D199: =+B199/Spectre!B$2701 -> 3.284144323
A200: 4000.7675 | B200: 3.471524 | C200: 2.11811688 | D200: =+B200/Spectre!B$2701 -> 3.314501206
... 3342 more rows

Sheet Abaque
C1: AOD = 0.13
C2: 0.01 | D2: 0.02 | E2: 0.03 | F2: 0.05 | I2: 0.01 | J2: 0.02 | K2: 0.03 | L2: 0.05
B3: 90 | C3: 76.5 | D3: 71 | E3: 67.3 | F3: 61.5 | H3: 90 | I3: =+$B3-C3 -> 13.5 | J3: =+$B3-D3 -> 19 | K3: 22.7 | L3: 28.5
B4: 80 | C4: 73.5 | D4: 69 | E4: 65.5 | F4: 60 | H4: 80 | I4: =+$B4-C4 -> 6.5 | J4: =+$B4-D4 -> 11 | K4: =+$B4-E4 -> 14.5 | L4: =+$B4-F4 -> 20
B5: 70 | C5: 66.2 | D5: 63.2 | E5: 60.5 | F5: 56.2 | H5: 70 | I5: 3.8 | J5: 6.8 | K5: 9.5 | L5: 13.8
B6: 60 | C6: 57.6 | D6: 55.6 | E6: 53.9 | F6: 50.6 | H6: 60 | I6: 2.4 | J6: 4.4 | K6: 6.1 | L6: 9.4
B7: 55 | C7: 53.1 | D7: 51.5 | E7: 50 | F7: 47.4 | H7: 55 | I7: 1.9 | J7: 3.5 | K7: 5 | L7: 7.6
B8: 50 | C8: 48.6 | D8: 47.3 | E8: 46 | F8: 43.8 | H8: 50 | I8: 1.4 | J8: 2.7 | K8: 4 | L8: 6.2
B9: 45 | C9: 43.9 | D9: 42.8 | E9: 41.9 | F9: 40.1 | H9: 45 | I9: 1.1 | J9: 2.2 | K9: 3.1 | L9: 4.9
B10: 40 | C10: 39.15 | D10: 38.3 | E10: 37.6 | F10: 36.15 | H10: 40 | I10: 0.85 | J10: 1.7 | K10: 2.4 | L10: 3.85
B11: 35 | C11: 34.35 | D11: 33.75 | E11: 33.2 | F11: 32.1 | H11: 35 | I11: 0.65 | J11: 1.25 | K11: 1.8 | L11: 2.9
B12: 30 | C12: 29.55 | D12: 29.1 | E12: 28.68 | F12: 27.87 | H12: 30 | I12: 0.45 | J12: 0.9 | K12: 1.32 | L12: 2.13
B13: 25 | D13: 24.38 | E13: 24.08 | F13: 23.52 | H13: 25 | J13: 0.62 | K13: 0.92 | L13: 1.48
B14: 20 | D14: 19.6 | E14: 19.42 | F14: 19.05 | H14: 20 | J14: 0.4 | K14: 0.58 | L14: 0.95
B15: 15 | F15: 14.45 | H15: 15 | L15: 0.55
B16: 10 | F16: 9.84 | H16: 10
